Cogmind - Beta 10 @@@ ROGUE MODE // 2020.09.15 @ 15:59:26 Player: Alexbot Result: Establishing 0b11! Performance ------------- Evolutions (9) 4500 Regions Visited (39) 7800 Robots Destroyed (447) 2235 Value Destroyed (24168) 24168 Prototype IDs (114) 2280 Alien Tech Used (8) 1600 Bonus (37734) 37734 TOTAL SCORE: 80317 Bonus ------- High Alert Combat Kills 3667 Follower Combat Kills 2784 Network Hubs Disabled 400 Aligned with FarCom 300 Met Data Miner 300 Destroyed Z-Imprinter 1000 Met Warlord at Base 500 MAIN.C Attacked Warlord 500 Warlord Defense Kill 714 Built Enhanced Grunts 300 Met R17 at Cetus 500 Met Warlord at Research 2000 Destroyed MAIN.C Guards 500 Met MAIN.C 5000 Destroyed MAIN.C Shell 5000 Destroyed MAIN.C 10000 Met Warlord at Command 2000 Win 3000 Friendly Fire -731 Cogmind --------- Core Integrity 1090/1600 Matter 300/300 Energy 2202/2490 System Corruption 0% Temperature Cool (92) Movement Hovering (44) Location 0b11 Command Parts ------- > --- POWER (2) -------- Zero-point Reactor > --- PROPULSION (5) --- Combat Linear Gravjet Combat Linear Gravjet Combat Linear Gravjet Combat Linear Gravjet Combat Linear Gravjet > --- UTILITY (16) ----- Experimental Coolant Injector Large Storage Unit Large Storage Unit Large Storage Unit Large Storage Unit Superbattery Terrain Scan Processor Experimental Targeting Computer Experimental Core Analyzer Advanced Armor Integrity Analyzer SHELL Armor Thermal Barrier EM Dispersion Field AEGIS Remote Shield > --- WEAPON (2) ------- Improved Potential Cannon > --- INVENTORY (28) --- Zero-point Reactor Experimental Energy Well (0) Experimental Matter Compressor (500) Zionite Metafield Generator Experimental Terrain Scanner Advanced Kinecellerator Quantum Capacitor Femtoactuators Improved Force Booster Advanced Transmission Jammer Advanced ECM Suite Experimental Propulsion Shielding Experimental Weapon Shielding Advanced Focal Shield AEGIS Remote Shield Transdimensional Reconstructor Gamma Rifle HERF Cannon Enhanced Nova Cannon Helical Railgun Graviton Cannon Improved Plasma Cutter Core Stripper Peak State ------------ > --- POWER ------------ Zero-point Reactor > --- PROPULSION ------- Combat Linear Gravjet Combat Linear Gravjet Combat Linear Gravjet Combat Linear Gravjet Combat Linear Gravjet > --- UTILITY ---------- Experimental Coolant Injector Large Storage Unit Large Storage Unit Large Storage Unit Large Storage Unit Superbattery Terrain Scan Processor Experimental Targeting Computer Experimental Core Analyzer Advanced Armor Integrity Analyzer SHELL Armor Thermal Barrier EM Dispersion Field AEGIS Remote Shield > --- WEAPON ----------- Improved Potential Cannon > --- INVENTORY -------- Zero-point Reactor Experimental Energy Well Experimental Matter Compressor Zionite Metafield Generator Experimental Terrain Scanner Advanced Kinecellerator Quantum Capacitor Femtoactuators Improved Force Booster Advanced Transmission Jammer Advanced ECM Suite Experimental Propulsion Shielding Experimental Weapon Shielding Advanced Focal Shield AEGIS Remote Shield Transdimensional Reconstructor Gamma Rifle HERF Cannon Enhanced Nova Cannon Helical Railgun Graviton Cannon Improved Plasma Cutter Core Stripper [Rating: 209] Favorites ----------- Power Micro Nuclear Core Engine Cooled Ion Engine Power Core Micro Nuclear Core Reactor Light Quantum Reactor Propulsion Combat Gravmag System Treads Advanced Treads Leg Aluminum Leg Wheel Wheel Hover Unit Combat Gravmag System Utility Large Storage Unit Device Experimental Sensor Array Storage Large Storage Unit Processor Experimental Signal Interpreter Hackware Hacking Suite Protection Light Armor Plating Artifact Matter Drive Weapon Lance Energy Gun Gamma Rifle Energy Cannon Long-range Proton Cannon Ballistic Gun Improved Assault Rifle Ballistic Cannon Assault Cannon Launcher Mini Grenade Launcher Special Weapon Advanced Remote Datajack Impact Weapon Core Stripper Slashing Weapon Greatsword Piercing Weapon Lance Build | -11 -10 -10 -9 -9 -9 -8 -8 -7 -7 -7 -7 -6 -6 -6 -6 -6 -6 -6 -6 -5 -5 -5 -5 -5 -5 -5 -4 -4 -4 -4 -4 -4 -3 -3 -2 -2 -2 -1 -1 ------- Run | Scr Mat Min Mat Min Exi Min Mat Fac Low Low Dat Pro Fac Was Fac Low Low Zio Dee Pro Fac Was Fac Upp Upp War Pro Fac Ext Cet Arc Hub Res Qua Res Tes Sec Acc Com Slots Evolved 18 | . . . 2 . . . 2 2 . . . . 2 . . . . . . . 2 . . . . . . 2 . . . . 2 . 2 . . 2 . Power 1 | . . . . . . . . . . . . . . . . . . . . . . . . . . . . . . . . . . . 1 . . . . Propulsion 3 | . . . . . . . . . . . . . 2 . . . . . . . . . . . . . . . . . . . . . . . . 1 . Utility 14 | . . . 2 . . . 2 2 . . . . . . . . . . . . 2 . . . . . . 2 . . . . 2 . 1 . . 1 . Weapon . | . . . . . . . . . . . . . . . . . . . . . . . . . . . . . . . . . . . . . . . . Parts Attached 744 | . . 2 16 1 3 1 8 4 4 6 4 1 48 5 8 6 6 2 18 6 17 8 34 1 5 14 9 44 27 4 2 44 58 37 28 75 89 41 58 Power 32 | . . . 1 . . . 1 . . . . . 2 . . . . 1 2 . 3 . 3 . . . . 1 1 1 . . 3 2 3 3 1 2 2 Engine 1 | . . . 1 . . . . . . . . . . . . . . . . . . . . . . . . . . . . . . . . . . . . Core 15 | . . . . . . . 1 . . . . . 1 . . . . 1 1 . 3 . 3 . . . . 1 1 . . . 1 . . 2 . . . Reactor 16 | . . . . . . . . . . . . . 1 . . . . . 1 . . . . . . . . . . 1 . . 2 2 3 1 1 2 2 Propulsion 79 | . . . 2 1 . . . 2 . 1 . . 10 . . . . . 2 . 3 . 4 . . 1 . 9 7 2 . . 9 7 2 7 3 5 2 Treads 18 | . . . 2 1 . . . 2 . 1 . . 1 . . . . . . . . . . . . . . 1 4 2 . . . 4 . . . . . Leg 3 | . . . . . . . . . . . . . 1 . . . . . . . . . . . . . . . 2 . . . . . . . . . . Wheel 10 | . . . . . . . . . . . . . 2 . . . . . . . . . . . . . . 7 1 . . . . . . . . . . Hover 48 | . . . . . . . . . . . . . 6 . . . . . 2 . 3 . 4 . . 1 . 1 . . . . 9 3 2 7 3 5 2 Flight . | . . . . . . . . . . . . . . . . . . . . . . . . . . . . . . . . . . . . . . . . Utility 414 | . . . 4 . 3 . 4 2 1 1 1 . 23 2 3 3 3 . 12 4 9 8 20 . 5 9 5 24 13 1 1 32 29 15 17 47 51 25 37 Device 257 | . . . 1 . . . 1 . . . . . 13 . 3 2 3 . 8 4 6 2 12 . 5 4 3 10 7 . . 25 18 8 12 30 36 17 27 Storage 54 | . . . 1 . 3 . 1 . . 1 . . 3 . . 1 . . 1 . . 2 2 . . . . 7 1 . . 3 4 3 1 9 6 4 1 Processor 22 | . . . . . . . 1 1 . . . . 3 . . . . . 1 . . . . . . 1 . . . 1 . . 4 1 3 1 . . 5 Hackware 17 | . . . . . . . . . . . . . 4 1 . . . . . . 1 . 3 . . 1 . . . . . . 2 . 1 1 . 3 . Protection 61 | . . . 2 . . . 1 1 1 . 1 . . 1 . . . . 2 . 2 4 3 . . 3 2 7 5 . 1 4 1 2 . 4 9 1 4 Artifact 3 | . . . . . . . . . . . . . . . . . . . . . . . . . . . . . . . . . . 1 . 2 . . . Weapon 219 | . . 2 9 . . 1 3 . 3 4 3 1 13 3 5 3 3 1 2 2 2 . 7 1 . 4 4 10 6 . 1 12 17 13 6 18 34 9 17 Energy Gun 40 | . . . 1 . . . . . . . . . 1 . . . . . . . . . . . . 2 . 3 1 . . . 4 7 1 . 13 4 3 Energy Cannon 74 | . . . 1 . . . 2 . . . . . 3 . . 2 1 . . . . . . . . . . 1 3 . . 5 5 2 3 15 17 5 9 Ballistic Gun 18 | . . 1 5 . . . . . . . . . . 2 . . . . 1 . . . . . . . . . . . . . 2 4 1 1 . . 1 Ballistic Cannon 15 | . . . . . . . . . 1 . 1 . 1 . . . . . . . . . . . . . . 1 2 . 1 6 1 . . . . . 1 Launcher 26 | . . 1 2 . . 1 1 . 1 2 1 1 2 . 1 1 1 . 1 . 1 . 3 1 . 1 2 2 . . . . . . . . . . . Special Weapon 5 | . . . . . . . . . . . . . . . . . 1 . . . 1 . . . . . . . . . . . 2 . . . . . 1 Impact Weapon 8 | . . . . . . . . . . . . . . . . . . . . . . . . . . . . . . . . . . . . 2 4 . 2 Slashing Weapon 8 | . . . . . . . . . . 1 . . 3 1 1 . . . . . . . . . . . . . . . . . 1 . 1 . . . . Piercing Weapon 25 | . . . . . . . . . 1 1 1 . 3 . 3 . . 1 . 2 . . 4 . . 1 2 3 . . . 1 2 . . . . . . Special Melee Weapon . | . . . . . . . . . . . . . . . . . . . . . . . . . . . . . . . . . . . . . . . . Unidentified Prototypes 66 | . . . 3 . . . . . . . . . 2 . . . . . 7 . 1 . . . 2 8 . 1 . 2 1 . 8 1 2 15 4 2 7 Parts Lost 83 | . . . 1 . . 1 . . 2 . . . 6 . . . . . . . 1 . 4 . . . . 17 8 . . 7 16 5 2 6 7 . . Power 8 | . . . . . . . . . . . . . 1 . . . . . . . . . . . . . . 1 . . . . 3 . . 2 1 . . Propulsion 19 | . . . . . . . . . . . . . 3 . . . . . . . 1 . . . . . . 8 4 . . . 2 . . . 1 . . Utility 34 | . . . . . . 1 . . 1 . . . 1 . . . . . . . . . 3 . . . . 6 2 . . 5 9 2 1 3 . . . Weapon 22 | . . . 1 . . . . . 1 . . . 1 . . . . . . . . . 1 . . . . 2 2 . . 2 2 3 1 1 5 . . Highest Loss Streak 13 | . . . 1 . . 1 . . 2 . . . 2 . . . . . . . 1 . 2 . . . . 9 4 . . 5 13 2 2 3 3 . . Average Slot Usage (%) 91 | . 85 85 90 100 100 90 96 91 91 91 92 100 95 88 95 93 96 96 99 100 97 98 97 100 99 97 100 76 91 90 89 84 80 67 83 89 89 98 87 Engine 1 | . 14 14 11 11 11 11 8 . . . . . . . . . . . . . . . . . . . . . . . . . . . . . . . . Core 3 | . . . . . . . . 7 7 7 7 7 5 6 6 6 6 6 5 6 4 5 5 5 5 5 5 3 5 1 . . 1 . . 2 . . . Reactor 1 | . . . . . . . . . . . . . . . . . . . . . . . . . . . . . . 3 5 5 2 2 7 3 4 7 4 Treads 5 | . . . 10 22 22 22 18 15 15 15 15 15 4 . . . . . . . . . . . . . . 1 7 10 10 10 4 8 . . . . . Wheel 1 | . . . . . . . . . . . . . 5 . . . . . . . . . . . . . . 6 10 . . . . . . . . . . Hover 11 | . . . . . . . . . . . . . 13 26 26 26 26 26 26 26 23 23 22 23 23 23 23 6 . . . . 8 1 14 16 16 19 19 Device 7 | . . . 5 . . . 8 7 4 . . . 2 . 6 6 6 6 4 6 5 4 4 5 4 4 4 6 8 15 15 13 11 10 19 13 15 12 13 Storage 24 | . 14 14 15 22 27 33 27 30 30 30 38 38 27 26 26 26 26 26 27 33 29 28 29 29 29 29 29 20 22 21 21 19 16 18 13 17 20 20 19 Processor 8 | . . . . . . . 8 6 7 7 7 7 5 10 6 6 6 6 6 6 5 5 5 5 5 7 5 5 5 9 10 10 17 12 19 19 13 12 15 Hackware 7 | . . . . . . . . . . . . . 13 8 13 13 13 13 9 6 10 11 14 17 17 14 17 13 10 10 10 9 5 . 2 6 8 15 6 Protection 5 | . . . 18 22 16 1 6 6 9 14 7 15 2 2 . . . . 2 . 2 5 1 . . . . 3 10 5 5 5 1 3 . 1 2 4 3 Energy Cannon 1 | . . . . . . . 6 7 6 . . . . . . . . . . . . . . . . . . 1 5 10 6 5 1 1 1 3 2 2 3 Ballistic Gun 2 | . 28 27 17 22 22 12 7 . . . . . . 5 . . . . 3 . . . . . . . . . . . . . . 2 . . . . . Launcher 1 | . . . . . . 9 4 7 4 5 6 . . . . . . . 1 6 4 . 1 . 5 . 4 . . . . . . . . . . . . Piercing Weapon 2 | . . . . . . . . . . 6 7 7 3 . 4 6 6 9 7 6 5 5 5 10 5 5 5 5 2 . . 1 3 . . . . . . Naked Turns . | . . . . . . . . . . . . . . . . . . . . . . . . . . . . . . . . . . . . . . . . Heaviest Build 159 | 12 12 14 32 32 113 113 128 145 152 154 154 155 154 78 83 88 83 77 92 92 94 125 100 92 92 97 93 126 140 111 114 147 109 115 100 125 145 141 159 Greatest Support 172 | 20 20 20 40 48 48 48 48 50 44 44 44 44 88 82 88 88 76 82 97 97 103 100 100 100 100 100 95 100 92 160 160 160 160 155 103 126 126 172 160 Greatest Overweight (x) 12 | . . . . . 2 2 2 3 3 3 3 3 9 . 1 . 1 1 1 . 1 1 1 . . 1 . 12 4 1 . 1 1 1 1 1 1 . 1 Average Overweight (x) . | . . . . . . 2 2 2 3 3 3 3 1 . . . . . . . . . . . . . . 1 2 . . . . . . . . . . Largest Inventory Capacity 40 | . 6 6 10 10 28 28 34 34 34 40 40 40 40 28 28 28 28 28 28 28 28 28 34 34 34 34 34 34 28 22 22 22 28 26 26 26 32 32 32 Average Capacity 27 | . 6 6 7 10 19 28 28 34 34 34 40 40 32 28 28 28 28 28 28 28 28 28 33 34 34 34 34 26 24 22 22 22 23 24 21 25 26 32 30 Most Carried 40 | . 6 6 10 10 21 22 32 34 34 40 40 40 40 28 28 28 28 28 28 28 28 28 34 32 34 34 34 34 28 22 22 22 28 26 22 26 29 32 32 Average Carried 25 | . 5 5 7 9 13 21 25 32 33 32 38 39 31 27 26 27 27 27 27 28 27 27 31 32 29 33 34 23 23 21 21 21 21 22 20 24 25 30 28 Final Capacity 40 | 6 6 6 10 10 28 28 34 34 34 40 40 40 28 28 28 28 28 28 28 28 28 28 34 34 34 34 34 28 22 22 22 22 16 20 22 26 32 32 28 Final Carried 40 | 6 5 6 10 10 21 22 32 34 31 40 37 40 26 28 28 27 28 28 28 28 28 28 32 32 32 34 34 24 22 22 22 19 13 20 22 26 29 32 25 Class Distribution -------------------- 44% | Hauler-Mutant 18% | Scavenger-Mutant 9% | Hacker-Mutant 7% | Hacker-Sprinter 6% | Mutant 5% | Scavenger-Scout Dominant Class ---------------- Mutant | -10/Materials Mutant | -10/Mines Scavenger-Mutant | -9/Materials Mutant | -9/Mines Hauler-Mutant | -9/Exiles Hauler-Mutant | -8/Mines Hauler-Mutant | -8/Materials Hauler-Mutant | -7/Factory Hauler-Mutant | -7/Lower Caves Hauler-Mutant | -7/Lower Caves Hauler-Mutant | -7/Data Miner Hauler-Mutant | -6/Proximity Caves Hauler-Mutant | -6/Factory Hauler-Mutant | -6/Waste Hauler-Mutant | -6/Factory Hauler-Mutant | -6/Lower Caves Hauler-Mutant | -6/Lower Caves Hauler-Mutant | -6/Zion Hauler-Mutant | -6/Deep Caves Hauler-Mutant | -5/Proximity Caves Machinist-Mutant | -5/Factory Machinist-Mutant | -5/Waste Hauler-Mutant | -5/Factory Hauler-Mutant | -5/Upper Caves Hauler-Mutant | -5/Upper Caves Hauler-Mutant | -5/Warlord Hacker-Mutant | -4/Proximity Caves Hacker-Mutant | -4/Factory Scavenger-Mutant | -4/Extension Scavenger-Mutant | -4/Cetus Scavenger-Mutant | -4/Archives Scavenger-Mutant | -4/Hub_04(d) Scavenger-Mutant | -3/Research Scavenger-Mutant | -3/Quarantine Scavenger-Mutant | -2/Research Scavenger-Scout | -2/Testing Hacker-Sprinter | -2/Section 7 Hacker-Sprinter | -1/Access Hauler-Mutant | -1/Command Resources | -11 -10 -10 -9 -9 -9 -8 -8 -7 -7 -7 -7 -6 -6 -6 -6 -6 -6 -6 -6 -5 -5 -5 -5 -5 -5 -5 -4 -4 -4 -4 -4 -4 -3 -3 -2 -2 -2 -1 -1 ----------- Run | Scr Mat Min Mat Min Exi Min Mat Fac Low Low Dat Pro Fac Was Fac Low Low Zio Dee Pro Fac Was Fac Upp Upp War Pro Fac Ext Cet Arc Hub Res Qua Res Tes Sec Acc Com Matter Collected 12458 | 200 . 117 417 32 . 91 178 . 241 179 35 53 727 130 71 27 182 26 245 132 167 20 570 56 235 377 163 829 493 79 84 726 411 692 405 1009 1045 900 1114 Remotely . | . . . . . . . . . . . . . . . . . . . . . . . . . . . . . . . . . . . . . . . . Salvage Created 23451 | . . 120 883 24 . 151 607 . 417 425 82 26 1491 . 176 27 215 . 245 209 480 . 868 36 401 299 108 983 749 364 377 2617 1760 1210 732 1720 1787 1678 2184 Parts 984 | . . 9 54 2 . 8 37 . 23 15 2 7 61 . 15 . 5 . 10 12 25 . 42 3 22 10 8 47 32 15 14 105 71 58 18 68 77 68 41 Haulers Intercepted 26 | . . . 3 . . . . . . . . . 5 . . . . . . . 2 . 2 . 1 . . . . . . 4 2 . 3 . 2 2 . Recyclers Shooed 5 | . . 1 . . . . 1 . . . . . 3 . . . . . . . . . . . . . . . . . . . . . . . . . . Parts Field Recycled . | . . . . . . . . . . . . . . . . . . . . . . . . . . . . . . . . . . . . . . . . Retrieved Matter . | . . . . . . . . . . . . . . . . . . . . . . . . . . . . . . . . . . . . . . . . Parts Self-Destructed 152 | . . . . . . . . . 12 20 . 1 . . . . 8 . . 22 . . . 3 15 65 6 . . . . . . . . . . . . Prevented 22 | . . . . . . . . . 1 . . . . . . . 5 . . 1 . . . . 3 12 . . . . . . . . . . . . . Kills | -11 -10 -10 -9 -9 -9 -8 -8 -7 -7 -7 -7 -6 -6 -6 -6 -6 -6 -6 -6 -5 -5 -5 -5 -5 -5 -5 -4 -4 -4 -4 -4 -4 -3 -3 -2 -2 -2 -1 -1 ------- Run | Scr Mat Min Mat Min Exi Min Mat Fac Low Low Dat Pro Fac Was Fac Low Low Zio Dee Pro Fac Was Fac Upp Upp War Pro Fac Ext Cet Arc Hub Res Qua Res Tes Sec Acc Com Combat Hostiles Destroyed 354 | . . 5 18 . . 4 16 . 14 10 1 3 16 . 4 . 3 . 3 5 4 . 15 5 12 7 8 21 12 5 3 29 18 18 4 26 20 14 31 Melee 38 | . . . . . . . . . . 6 . . 5 . 1 . . . . . 2 . 4 . 1 . 2 10 3 . . 3 1 . . . . . . Guns 47 | . . 2 12 . . . . . . . . . . . . . . . 1 . . . . . . . . 3 . . . . 1 17 . 6 3 2 . Cannons 76 | . . . . . . . 3 . 3 . . . 6 . . . . . . . . . . . . . . 1 5 2 2 17 7 1 1 8 4 6 10 AOE 133 | . . 3 6 . . 4 13 . 11 4 . 3 4 . 3 . 1 . 2 4 . . 10 5 11 7 6 6 . . . 2 . . . 9 5 . 14 Classes Destroyed 27 | . . 3 4 . . 2 1 . 3 1 . . 1 . . . . . 2 1 . . . . 1 1 . . . . . 1 . 1 . 2 . 1 2 Worker 16 | . . 1 1 1 . . 2 . . . . . . . . . . . . . . . 1 . . . . 1 . . . 4 2 1 . . . 1 1 Builder 7 | . . . 1 . . . 1 . . . . . . . 1 . . . . . . . . . . . . . 1 . . 2 1 . . . . . . Tunneler 1 | . . . . . . . . . . . . . . . . . . . . . . . . . . . . . . . . . . . . . . 1 . Hauler 26 | . . . 3 . . . . . . . . . 5 . . . . . . . 2 . 2 . 1 . . . . . . 4 2 . 3 . 2 2 . Recycler 5 | . . . 1 . . . 1 . . . . . 1 . . . . . . . . . . . . . . . . . . . 1 1 . . . . . Minesweeper 4 | . . . . . . . . . 1 2 . . . . . 1 . . . . . . . . . . . . . . . . . . . . . . . Mechanic 2 | . . . . . . . . . . . . . . . . . . . . . . . . . . . . . . . . . . 1 . . . . 1 Operator 7 | . . . . . . . . . . . . . 2 . . . . . . . . . . . . . . . . . 3 1 1 . . . . . . Watcher 21 | . . . . . . . 1 . . . . . 1 . . . . . . . 1 . 3 . . . . 1 . 1 . 3 2 . . 1 3 4 . Swarmer 64 | . . 3 2 . . . 3 . 5 . . 3 . . 3 . . . . 4 . . 9 5 5 . 5 4 3 . . 1 . 2 . 4 1 . 2 Saboteur 1 | . . . . . . . . . . . . . . . . . . . . . . . . . . . . . . . . 1 . . . . . . . Grunt 109 | . . 2 13 . . 2 8 . 5 5 . . 4 . . . 2 . . . . . 1 . 5 4 . 6 4 . . 10 10 6 2 7 5 2 6 Brawler 6 | . . . . . . . . . . 2 . . . . . . 1 . . . . . . . 1 1 . . . . . 1 . . . . . . . Duelist 5 | . . . . . . 1 . . . . . . . . . . . . . . . . . . . 1 . . . . . . . 3 . . . . . Protector 1 | . . . . . . . . . . . . . . . . . . . . . . . . . . 1 . . . . . . . . . . . . . Researcher 1 | . . . . . . . . . . . . . . . . . . . . . . . . . . . . . . . . . . . . 1 . . . Sentry 48 | . . . 3 . . . 4 . 1 1 . . 4 . 1 . . . . . 1 . 3 . . . 1 2 4 . 3 4 1 . 2 . 5 4 4 Hunter 45 | . . . . . . 1 1 . 2 . . . 3 . . . . . . . 2 . 2 . . . 2 5 . . . 8 2 2 . 3 . 2 10 Programmer 51 | . . . . . . . . . . 1 . . 5 . . . . . . . 1 . . . . . . 4 . . . 4 5 5 . 11 7 6 2 Behemoth 3 | . . . . . . . . . . . . . . . . . . . . 1 . . . . . . . . . . . . . . . . 1 . 1 Cetus Guard 5 | . . . . . . . . . . . . . . . . . . . . . . . . . . . . . . 5 . . . . . . . . . S7 Guard 1 | . . . . . . . . . . . . . . . . . . . . . . . . . . . . . . . . . . . . . 1 . . M Guard 2 | . . . . . . . . . . . . . . . . . . . . . . . . . . . . . . . . . . . . . . . 2 Enhanced Grunt 1 | . . . . . . . . . . . 1 . . . . . . . . . . . . . . . . . . . . . . . . . . . . Striker 1 | . . . . . . . . . . . . . . . . . . . . . . . . . . . . . . . . . . . . . . . 1 Executioner 1 | . . . . . . . . . . . . . . . . . . . . . . . . . . . . . . . . . . . . . . . 1 Fortress 1 | . . . . . . . . . . . . . . . . . . . . . . . . . . . . . . . . . . . . 1 . . . Z-Light 1 | . . . . . . . . . . . . . . . . . . . 1 . . . . . . . . . . . . . . . . . . . . Master Thief 1 | . . . . . . . . . . . . . . . . . . . . . . . . . 1 . . . . . . . . . . . . . . Assembled 2 | . . . . . . . . . . . . . . . . . . . 2 . . . . . . . . . . . . . . . . . . . . Thug 1 | . . . . . . . . . . 1 . . . . . . . . . . . . . . . . . . . . . . . . . . . . . Savage 1 | . . . . . . . . . 1 . . . . . . . . . . . . . . . . . . . . . . . . . . . . . . Butcher 2 | . . . . . . . . . . . . . . . . . . . 1 . . . . . . . . . 1 . . . . . . . . . . Mutant 2 | . . . . . . . . . 1 . . . . . . . . . 1 . . . . . . . . . . . . . . . . . . . . Best Kill Streak 11 | . . 3 8 1 . 4 11 . 8 6 1 3 3 . 5 1 3 . 2 4 2 . 6 5 5 7 5 6 5 4 5 11 8 6 3 11 4 4 7 Combat Bots Only 10 | . . 3 6 . . 4 6 . 8 6 1 3 3 . 4 . 3 . 2 4 2 . 5 5 5 7 5 6 5 3 3 9 5 6 2 10 4 3 7 Max Kills in Single Turn 6 | . . 1 3 1 . 1 3 . 2 2 1 2 1 . 3 1 1 . 1 2 1 . 4 4 3 5 2 2 1 1 1 6 2 2 1 4 2 1 4 Gunslinging . | . . . . . . . . . . . . . . . . . . . . . . . . . . . . . . . . . . . . . . . . Exploded 5 | . . 1 3 . . 1 2 . 2 2 . 2 1 . 2 . 1 . 1 2 . . 4 4 3 5 2 2 . . . 2 . . . 4 2 . 3 Melee 1 | . . . . . . . . . . 1 . . 1 . 1 . . . . . 1 . 1 . 1 . 1 1 1 . . 1 1 . . . . . . Uniques/NPCs Destroyed 2 | . . . . . . . . . . . . . . . . . . . 1 . . . . . . . . . . . . . . . . . . . 1 Z-Imprinter (-6/Deep Caves) MAIN.C Shell (-1/Command) MAIN.C (-1/Command) Combat | -11 -10 -10 -9 -9 -9 -8 -8 -7 -7 -7 -7 -6 -6 -6 -6 -6 -6 -6 -6 -5 -5 -5 -5 -5 -5 -5 -4 -4 -4 -4 -4 -4 -3 -3 -2 -2 -2 -1 -1 -------- Run | Scr Mat Min Mat Min Exi Min Mat Fac Low Low Dat Pro Fac Was Fac Low Low Zio Dee Pro Fac Was Fac Upp Upp War Pro Fac Ext Cet Arc Hub Res Qua Res Tes Sec Acc Com Damage Taken 31398 | . . 267 421 . . 198 307 . 482 726 . 212 1261 145 59 30 27 . 153 103 122 . 1064 18 51 724 324 4642 1301 57 . 2048 4683 4455 281 2149 1398 727 2963 Core 4042 | . . 54 103 . . 82 32 . 21 49 . 18 126 36 . . . . 38 . 32 . 234 . 6 389 64 790 63 9 . 57 807 307 26 286 97 121 195 Absorbed by Shields 4778 | . . . . . . . 121 . 125 . . . 154 . 55 . 28 . 34 106 123 . . . . . . . 482 60 . 706 . . 44 48 . 201 2491 Reduced by Siege Mode 537 | . . . . . . . . . . . . . . . . . . . . . . . . . . . . . . . . 29 176 332 . . . . . Core Remaining (%) 62 | 100 . 78 . . . 53 94 . . . . 87 . . . . . . . 76 . . . . . . 27 . . . . 20 . 14 . . 71 . 68 Volleys Fired 1118 | . . 21 53 3 . 5 27 . 35 13 1 5 40 14 2 3 13 . 22 4 6 . 11 4 10 6 9 42 54 12 16 91 92 92 38 84 96 95 99 Largest 2 | . . 2 2 2 . 1 1 . 2 1 1 1 2 1 1 1 1 . 1 1 1 . 1 1 1 1 1 1 1 2 2 2 2 2 1 1 2 2 1 Hottest 240 | . . 40 60 46 . 30 68 . 112 44 39 36 126 33 43 90 90 . 43 43 50 . 80 80 80 80 80 90 225 162 162 169 113 240 240 200 205 200 200 Shots Fired 1334 | . . 38 99 6 . 5 27 . 41 13 1 5 44 13 2 3 13 . 22 4 6 . 11 4 10 6 9 42 53 24 22 110 96 141 38 84 116 127 99 Gun 543 | . . 34 93 6 . . . . . . . . 1 13 . . . . 19 . . . . . . . . 14 13 . . . 28 122 17 40 59 80 4 Cannon 659 | . . . . . . . 12 . 32 5 . . 35 . . 3 8 . . . . . . . . . . 18 40 24 22 110 68 19 21 44 57 47 94 Launcher 127 | . . 4 6 . . 5 15 . 9 8 1 5 8 . 2 . 5 . 3 4 3 . 10 4 10 6 9 10 . . . . . . . . . . . Special 5 | . . . . . . . . . . . . . . . . . . . . . 3 . 1 . . . . . . . . . . . . . . . 1 Kinetic 411 | . . 34 87 6 . . . . 4 5 . . 26 13 . . . . 19 . . . . . . . . 8 17 . 8 43 11 49 11 40 . . 30 Thermal 397 | . . . 6 . . . 12 . 28 . . . 2 . . 3 8 . . . . . . . . . . . 13 . . 6 35 92 6 39 48 47 52 Explosive 98 | . . 4 6 . . 5 15 . 9 8 . 5 3 . . . . . . . . . 4 4 10 6 9 10 . . . . . . . . . . . Electromagnetic 409 | . . . . . . . . . . . 1 . 13 . 2 . 5 . 3 4 3 . 6 . . . . 10 23 24 14 61 50 . 21 5 68 80 16 Entropic 14 | . . . . . . . . . . . . . . . . . . . . . . . . . . . . 14 . . . . . . . . . . . Robot Hit Streak 41 | . . 9 18 8 . 2 6 . 9 7 . 3 11 4 1 . 6 . 4 4 1 . 5 . 6 8 9 11 5 9 10 17 23 41 18 38 18 13 18 Robot Miss Streak 9 | . . 2 7 1 . 2 1 . 3 3 . 1 2 2 2 . . . 4 . 2 . 3 . . . . 4 9 1 2 3 3 2 1 2 3 3 2 Penetration Max 2 | . . . . . . . . . . . . . . . . . . . 1 . . . . . . . . . . . . 1 2 . 1 1 . . . Secondary Targets 4 | . . . . . . . . . . . . . . . . . . . . . . . . . . . . . . . . . . 4 . . . . . Max Gunslinging Chain 1 | . . . . . . . . . . . . . . . . . . . . . . . . . . . . . . . . . . 1 . . . . . Capacitor 160 | . . . . . . . . . . . . . . . . . . . . . . . . . . . . . . . . . 85 . 27 16 . . 32 Shots Hit Robots 1082 | . . 25 64 4 . 2 21 . 27 20 1 4 68 7 2 4 5 . 11 5 15 . 29 . 15 2 11 60 33 17 17 82 94 110 29 63 75 80 80 Core Hits 761 | . . 13 45 1 . 7 46 . 35 23 . 5 34 . 5 1 4 . 10 5 7 . 30 5 20 23 14 41 13 10 11 64 47 50 8 47 44 43 50 Critical Hits 126 | . . . . . . . 3 . 3 . . . 1 1 . . . . 6 . 1 . 1 . . . . 2 7 . 5 28 5 16 2 26 10 . 9 Critical Kills 48 | . . . . . . . 1 . 1 . . . 1 . . . . . 3 . 1 . 1 . . . . 1 3 . 3 13 . 7 1 6 3 . 3 Critical Parts Destroyed 67 | . . . . . . . 2 . 2 . . . . . . . . . 1 . . . . . . . . 1 4 . 2 12 5 9 1 17 7 . 4 Melee Attacks 339 | . . . . . . . . . 1 12 1 . 71 1 3 7 3 . 8 2 22 . 42 . 14 1 10 54 21 . . 11 33 . 2 6 10 . 4 Kinetic 16 | . . . . . . . . . . . . . . . . . . . . . . . . . . . . . . . . . . . . 2 10 . 4 Impact . | . . . . . . . . . . . . . . . . . . . . . . . . . . . . . . . . . . . . . . . . Slashing 64 | . . . . . . . . . . 6 . . 49 1 2 . . . . . . . . . . . . . . . . . . . 2 4 . . . Piercing 259 | . . . . . . . . . 1 6 1 . 22 . 1 7 3 . 8 2 22 . 42 . 14 1 10 54 21 . . 11 33 . . . . . . Sneak Attacks 28 | . . . . . . . . . . 3 1 . 9 . 1 1 . . . . 3 . 3 . . . . 1 3 . . 1 2 . . . . . . Combat Hostiles 1 | . . . . . . . . . . . . . . . 1 . . . . . . . . . . . . . . . . . . . . . . . . Follow-up Attacks 3 | . . . . . . . . . . . . . . . . . . . . . . . . . . . 2 1 . . . . . . . . . . . Damage Inflicted 66817 | . . 403 1342 79 . 246 1640 . 1714 1353 77 516 3553 71 265 234 286 . 224 183 917 . 2700 489 1964 1622 1606 3704 1583 700 464 4093 4060 3165 708 6017 4069 3136 13634 Guns 8991 | . . 205 725 79 . . . . . . . . 23 71 . . . . 116 . . . . . . . . 574 . . . . 957 2703 39 471 1209 1725 94 Cannons 24619 | . . . . . . . 207 . 527 87 . . 771 . . . . . . . . . . . . . . 527 944 554 464 2439 2216 462 669 3316 1909 1411 8116 Explosions 23773 | . . 198 617 . . 246 1433 . 1187 696 2 516 549 . 169 . 286 . 108 140 184 . 1428 489 1579 1622 1202 1139 . 146 . 1334 56 . . 2162 894 . 5391 Melee 9317 | . . . . . . . . . . 570 75 . 2210 . 96 234 . . . 43 733 . 1272 . 385 . 404 1464 639 . . 308 726 . . 68 57 . 33 Ramming 117 | . . . . . . . . . . . . . . . . . . . . . . . . . . . . . . . . 12 105 . . . . . . Kinetic 6834 | . . 205 683 79 . . . . 77 87 . . 540 71 . . . . 116 . . . . . . . . 314 529 . 112 726 160 967 39 539 57 . 1533 Thermal 25970 | . . . 42 . . . 207 . 450 . . . 177 . 45 . . . . . . . . . . . . . . 146 . 352 1341 2198 . 5296 2686 1411 11619 Explosive 12219 | . . 198 617 . . 246 1433 . 1187 696 . 516 211 . . . . . . . . . 1084 489 1579 1622 1202 1139 . . . . . . . . . . . Electromagnetic 11944 | . . . . . . . . . . . 2 . 415 . 124 . 286 . 108 140 184 . 344 . . . . 213 415 554 352 2695 1728 . 669 182 1326 1725 482 Impact . | . . . . . . . . . . . . . . . . . . . . . . . . . . . . . . . . . . . . . . . . Slashing 2048 | . . . . . . . . . . 266 . . 1782 . . . . . . . . . . . . . . . . . . . . . . . . . . Piercing 7111 | . . . . . . . . . . 304 75 . 428 . 96 234 . . . 43 733 . 1272 . 385 . 404 1464 639 . . 308 726 . . . . . . Entropic 574 | . . . . . . . . . . . . . . . . . . . . . . . . . . . . 574 . . . . . . . . . . . Highest Corruption 11 | . . . . . . . . . . . . . 1 7 7 7 7 7 . . 6 6 6 6 6 7 . 5 5 5 5 5 4 9 . 9 11 . . Average Corruption 4 | . . . . . . . . . . . . . 1 6 7 7 7 7 . . 5 6 6 6 6 6 . 2 4 4 5 2 1 4 . 5 10 . . Corruption Purged 8 | . . . . . . . . . . . . . . . . . . . . . . . . . . . . . 1 . . 7 . . . . . . . Effects 320 | . . . . . . . . . . . . . 12 2 9 8 7 3 . . 7 4 34 5 10 1 . 18 24 6 6 21 8 40 . 18 77 . . Message Errors 68 | . . . . . . . . . . . . . 6 1 . 2 2 1 . . 2 . 6 2 1 . . 5 8 1 3 5 3 6 . 5 9 . . Matter Fused 54 | . . . . . . . . . . . . . . . 1 1 3 1 . . 1 . 8 1 2 . . 6 5 1 . 1 . 8 . 6 9 . . Heat Flow Errors 36 | . . . . . . . . . . . . . . . 2 3 . . . . 1 2 8 1 . . . . 2 2 1 3 . 4 . . 7 . . Energy Discharges 42 | . . . . . . . . . . . . . 2 . 3 . . . . . 1 1 3 . 2 . . 4 5 1 1 1 1 4 . 4 9 . . Parts Rejected 5 | . . . . . . . . . . . . . . . . . . . . . . . 2 . . . . . 1 . . . . 1 . . 1 . . Data Loss (minor) 31 | . . . . . . . . . . . . . 3 . 1 1 1 . . . 2 1 2 . 3 1 . . . 1 . . 3 4 . 1 7 . . Data Loss (major) 9 | . . . . . . . . . . . . . . . 1 . 1 1 . . . . 3 1 . . . . . . . . . . . . 2 . . Misfires 1 | . . . . . . . . . . . . . . . . . . . . . . . . . . . . . . . . . . . . . 1 . . Misdirections 16 | . . . . . . . . . . . . . . . . . . . . . . . . . . . . . . . . . . . . . 16 . . Targeting Errors 43 | . . . . . . . . . . . . . 1 . 1 1 . . . . . . 2 . 2 . . 3 2 . . 7 1 12 . 2 9 . . Weapon Failures 15 | . . . . . . . . . . . . . . 1 . . . . . . . . . . . . . . 1 . 1 4 . 1 . . 7 . . Overload Shots 3 | . . . . . . . . . . . . . . . . . . . . . . . . . . . . . 1 . . . . 1 1 . . . . Overflow Damage 4955 | . . . 14 . . . 38 . 15 111 15 45 275 . 16 124 . . . 1 15 . 237 . 163 6 222 73 297 . . 215 46 23 . 1018 471 215 1300 Projectiles 2454 | . . . . . . . . . 1 . . . 44 . . . . . . . . . . . . . . 14 33 . . 23 32 23 . 717 377 215 975 Explosions 1576 | . . . 14 . . . 38 . 14 12 . 45 . . 16 . . . . 1 . . 134 . 130 6 216 38 . . . 192 . . . 301 94 . 325 Melee 925 | . . . . . . . . . . 99 15 . 231 . . 124 . . . . 15 . 103 . 33 . 6 21 264 . . . 14 . . . . . . Knockbacks 31 | . . . . . . . . . . 1 . . 5 . . . . . . . . . . . . . . 6 4 . 3 4 . . . . . . 8 Impact . | . . . . . . . . . . . . . . . . . . . . . . . . . . . . . . . . . . . . . . . . Kinetic 30 | . . . . . . . . . . 1 . . 5 . . . . . . . . . . . . . . 5 4 . 3 4 . . . . . . 8 Secondary 1 | . . . . . . . . . . . . . . . . . . . . . . . . . . . . 1 . . . . . . . . . . . Self-Inflicted Damage 608 | . . 30 36 . . 78 54 . 32 23 . 42 . . . . . . 4 . . . 73 18 . . . 111 . . . 34 73 . . . . . . Shots 19 | . . 1 1 . . 2 3 . 1 1 . 1 . . . . . . 1 . . . 2 1 . . . 2 . . . 2 1 . . . . . . Rammed 9 | . . . . . . . . . . . . . . . . . . . . . . . . . . . . . . . . 3 6 . . . . . . Targets Rammed 9 | . . . . . . . . . . . . . . . . . . . . . . . . . . . . . . . . 3 6 . . . . . . Kicked . | . . . . . . . . . . . . . . . . . . . . . . . . . . . . . . . . . . . . . . . . Crushed . | . . . . . . . . . . . . . . . . . . . . . . . . . . . . . . . . . . . . . . . . Highest Temperature 619 | . . 18 204 . . . 84 . 257 102 . 10 153 . 258 272 190 . . . 78 174 289 234 105 84 142 88 242 270 198 446 394 167 194 376 368 416 619 Average Temperature 103 | . . 9 78 . . . 35 . 99 41 . 5 43 . 114 107 111 . . . 40 80 104 92 39 35 62 31 59 102 65 121 148 86 96 101 102 115 115 Received Heat Transfer 3637 | . . 132 153 . . 45 60 . 113 255 . . 207 . . . 12 . 36 12 4 . 81 . 9 . 9 264 223 . . 343 619 537 35 108 198 32 150 Effects 27 | . . . . . . . . . 1 . . . . . . . . . . . . . 1 1 . . . . . . . 4 3 . . 1 5 2 9 Shutdowns 5 | . . . . . . . . . . . . . . . . . . . . . . . . . . . . . . . . 1 . . . . 1 1 2 Energy Bleed 9 | . . . . . . . . . 1 . . . . . . . . . . . . . . 1 . . . . . . . 1 . . . 1 2 1 2 Interference 6 | . . . . . . . . . . . . . . . . . . . . . . . 1 . . . . . . . . . 3 . . . 2 . . Matter Decay 2 | . . . . . . . . . . . . . . . . . . . . . . . . . . . . . . . . 1 . . . . . . 1 Short Circuit 1 | . . . . . . . . . . . . . . . . . . . . . . . . . . . . . . . . 1 . . . . . . . Damage (major) 4 | . . . . . . . . . . . . . . . . . . . . . . . . . . . . . . . . . . . . . . . 4 Siege Activations 14 | . . . . . . . . . . . . . . . . . . . . . . . . . . . . . . . . 4 5 5 . . . . . Total Turns 325 | . . . . . . . . . . . . . . . . . . . . . . . . . . . . . . . . 81 96 148 . . . . . Longest Duration 44 | . . . . . . . . . . . . . . . . . . . . . . . . . . . . . . . . 44 34 43 . . . . . Robots Corrupted 53 | . . . . . . . . . . . 1 . 1 . . . 2 . . . 2 . 1 . . . . 1 4 3 1 8 9 . 4 1 5 7 3 Combat Hostiles 48 | . . . . . . . . . . . 1 . 1 . . . 2 . . . 2 . 1 . . . . 1 4 3 1 7 8 . 3 1 4 6 3 Parts Fried 114 | . . . . . . . . . . . . . 3 . . . 1 . . 2 3 . 5 . . . . 1 5 3 4 22 15 . 8 4 13 16 9 Impact Corruptions . | . . . . . . . . . . . . . . . . . . . . . . . . . . . . . . . . . . . . . . . . Robots Melted 3 | . . . . . . . . . . . . . . . . . . . . . . . . . . . . . . . . . 1 . . 1 . . 1 Combat Hostiles 3 | . . . . . . . . . . . . . . . . . . . . . . . . . . . . . . . . . 1 . . 1 . . 1 Parts Melted 19 | . . . . . . . . . . . . . 1 . . . . . . . . . . . . 4 . . . . . 1 3 1 . 4 3 1 1 Heat Transferred 16323 | . . . 100 . . . 370 . 814 . . . 187 . 50 . . . . . . . . . . . . . . 100 . 300 1658 2775 . 2797 1264 925 4983 Parts Sabotaged 2 | . . . . . . . . . . . . . . . . . . . . . . . . . . . . . . . . 2 . . . . . . . Parts Stolen 5 | . . . . . . . . . 2 . . . . . . . . . . . . . . . 3 . . . . . . . . . . . . . . Parts Stripped . | . . . . . . . . . . . . . . . . . . . . . . . . . . . . . . . . . . . . . . . . Power Chain Reactions 10 | . . . . . . . . . . . . . 3 . 3 . . . . . . . 1 . . . . . . 1 . 1 1 . . . . . . Missiles Intercepted . | . . . . . . . . . . . . . . . . . . . . . . . . . . . . . . . . . . . . . . . . Alert | -11 -10 -10 -9 -9 -9 -8 -8 -7 -7 -7 -7 -6 -6 -6 -6 -6 -6 -6 -6 -5 -5 -5 -5 -5 -5 -5 -4 -4 -4 -4 -4 -4 -3 -3 -2 -2 -2 -1 -1 ------- Run | Scr Mat Min Mat Min Exi Min Mat Fac Low Low Dat Pro Fac Was Fac Low Low Zio Dee Pro Fac Was Fac Upp Upp War Pro Fac Ext Cet Arc Hub Res Qua Res Tes Sec Acc Com Peak Influence 1432 | . . 230 604 181 . 131 343 156 . . . . 743 285 353 . . . . . 549 207 666 . . . . 537 437 317 333 1432 1213 868 985 1003 696 658 469 Initial 717 | . . . 89 176 . . 50 140 . . . . 44 260 199 . . . . . 140 192 141 . . . . 113 146 208 126 116 717 623 482 478 564 256 36 Average 342 | . . 125 389 140 . 104 155 152 . . . . 146 268 222 . . . . . 201 192 187 . . . . 301 220 206 281 707 896 635 753 248 496 406 168 Maximum Alert Level 4 | . . 1 2 . . . 1 . . . . . 3 1 1 . . . . . 2 1 2 . . . . 2 2 1 1 4 4 3 3 3 2 2 2 Low Security (%) 42 | . 100 83 15 100 . 100 77 100 . . . . 83 . 12 . . . . . 77 84 81 . . . . 17 49 38 18 1 . . . 50 . . 57 Level 1 21 | . . 16 10 . . . 22 . . . . . 10 100 87 . . . . . 5 15 10 . . . . 57 42 61 81 11 . . . 33 12 50 20 Level 2 24 | . . . 73 . . . . . . . . . 1 . . . . . . . 17 . 8 . . . . 25 7 . . 39 8 75 32 11 87 49 22 Level 3 10 | . . . . . . . . . . . . . 4 . . . . . . . . . . . . . . . . . . 33 82 24 67 4 . . . Level 4 1 | . . . . . . . . . . . . . . . . . . . . . . . . . . . . . . . . 14 9 . . . . . . Level 5 . | . . . . . . . . . . . . . . . . . . . . . . . . . . . . . . . . . . . . . . . . High Security . | . . . . . . . . . . . . . . . . . . . . . . . . . . . . . . . . . . . . . . . . Max Security . | . . . . . . . . . . . . . . . . . . . . . . . . . . . . . . . . . . . . . . . . Squads Dispatched 83 | . . . 4 . . . 1 . . 1 . . 8 . . . . . . . 2 . 2 . . . . 4 3 . . 13 11 8 1 9 6 8 2 Investigation 12 | . . . 2 . . . . . . . . . 1 . . . . . . . 1 . . . . . . 2 . . . . . 2 . 3 . 1 . Extermination 22 | . . . . . . . . . . . . . 3 . . . . . . . . . 1 . . . . 2 . . . 1 2 2 . 4 3 2 2 Reinforcement 31 | . . . 2 . . . 1 . . . . . 4 . . . . . . . 1 . 1 . . . . . 3 . . 7 3 . 1 2 2 4 . Assault 10 | . . . . . . . . . . 1 . . . . . . . . . . . . . . . . . . . . . 1 2 4 . . 1 1 . Garrison 8 | . . . . . . . . . . . . . . . . . . . . . . . . . . . . . . . . 4 4 . . . . . . Intercept . | . . . . . . . . . . . . . . . . . . . . . . . . . . . . . . . . . . . . . . . . Construction Impeded 6 | . . . . . . . 1 . . . . . . . . . . . . . . . 1 . . . . . 2 . . 1 1 . . . . . . Haulers Reinforced 11 | . . . . . . . . . . . . . 2 . . . . . . . . . . . . . . . . . . 3 1 . 1 . 1 3 . Stealth | -11 -10 -10 -9 -9 -9 -8 -8 -7 -7 -7 -7 -6 -6 -6 -6 -6 -6 -6 -6 -5 -5 -5 -5 -5 -5 -5 -4 -4 -4 -4 -4 -4 -3 -3 -2 -2 -2 -1 -1 --------- Run | Scr Mat Min Mat Min Exi Min Mat Fac Low Low Dat Pro Fac Was Fac Low Low Zio Dee Pro Fac Was Fac Upp Upp War Pro Fac Ext Cet Arc Hub Res Qua Res Tes Sec Acc Com Distress Signals 58 | . . . 1 . . . 1 . . . . . 1 . . . . . . . 1 . 1 . . . . 1 3 2 . 2 4 1 8 . 1 2 29 Communications Jammed 6 | . . . . . . . . . . . . . . . . . . . . . . . . . . . . . . . . . . . . . 6 . . Distress Signals 6 | . . . . . . . . . . . . . . . . . . . . . . . . . . . . . . . . . . . . . 6 . . Times Spotted 662 | . . 5 34 . . 4 23 . 16 19 . 4 34 5 4 4 5 . 7 4 9 6 24 . 10 37 4 34 39 12 9 42 57 41 13 31 34 25 67 Peak Tracking Total 20 | . . 3 8 . . 3 4 . 8 6 . 4 3 4 3 4 3 . 3 4 3 6 6 1 3 9 4 7 8 5 2 5 20 11 4 9 5 5 12 Tactical Retreats 44 | . . . 6 . . . 2 . . . . 1 1 . . . 2 . . . . 1 1 1 2 . . 2 4 . . 1 5 2 . 3 5 3 2 Traps | -11 -10 -10 -9 -9 -9 -8 -8 -7 -7 -7 -7 -6 -6 -6 -6 -6 -6 -6 -6 -5 -5 -5 -5 -5 -5 -5 -4 -4 -4 -4 -4 -4 -3 -3 -2 -2 -2 -1 -1 ------- Run | Scr Mat Min Mat Min Exi Min Mat Fac Low Low Dat Pro Fac Was Fac Low Low Zio Dee Pro Fac Was Fac Upp Upp War Pro Fac Ext Cet Arc Hub Res Qua Res Tes Sec Acc Com Traps Triggered 25 | . . . 2 . . . . . . . . . 3 . 1 . . . . . 3 . 4 . . . . . 2 . . 4 2 1 . 2 . . 1 Indirectly 6 | . . . . . . . . . . . . . 1 . 1 . . . . . . . 3 . . . . . . . . 1 . . . . . . . Trap Hack Attempts . | . . . . . . . . . . . . . . . . . . . . . . . . . . . . . . . . . . . . . . . . Triggered . | . . . . . . . . . . . . . . . . . . . . . . . . . . . . . . . . . . . . . . . . Disarmed 14 | . . . . . . . . . . . . . . . . . . . . . . . . . . . . . 4 . . . . . . 4 6 . . Reprogrammed . | . . . . . . . . . . . . . . . . . . . . . . . . . . . . . . . . . . . . . . . . Reused 1 | . . . . . . . . . . . 1 . . . . . . . . . . . . . . . . . . . . . . . . . . . . Traps Extracted . | . . . . . . . . . . . . . . . . . . . . . . . . . . . . . . . . . . . . . . . . Installed 4 | . . . . . . . . . . . 4 . . . . . . . . . . . . . . . . . . . . . . . . . . . . Triggered 10 | . . . . . . . . . 1 . . . . . . . . . . . . . . . 1 8 . . . . . . . . . . . . . Machines | -11 -10 -10 -9 -9 -9 -8 -8 -7 -7 -7 -7 -6 -6 -6 -6 -6 -6 -6 -6 -5 -5 -5 -5 -5 -5 -5 -4 -4 -4 -4 -4 -4 -3 -3 -2 -2 -2 -1 -1 ---------- Run | Scr Mat Min Mat Min Exi Min Mat Fac Low Low Dat Pro Fac Was Fac Low Low Zio Dee Pro Fac Was Fac Upp Upp War Pro Fac Ext Cet Arc Hub Res Qua Res Tes Sec Acc Com Machines Disabled 68 | . . 7 . . . . . . 2 1 . . 5 . . . . . 2 . . . 1 . . . . . 1 . 1 17 3 3 . 8 14 . 3 Max in Single Turn 13 | . . 6 . . . . . . 1 1 . . 2 . . . . . 1 . . . 1 . . . . . . . . 13 1 1 . 1 1 . 1 Garrison Access 8 | . . . . . . . . . . . . . . . . . . . . . 1 . 1 . . . . 1 . . . . . 1 . 1 . 3 . Network Hub 2 | . . . . . . . . . . . . . . . . . . . . . . . . . . . . . . . . 2 . . . . . . . Machines Sabotaged . | . . . . . . . . . . . . . . . . . . . . . . . . . . . . . . . . . . . . . . . . Garrisons Compromised . | . . . . . . . . . . . . . . . . . . . . . . . . . . . . . . . . . . . . . . . . Overloaded Fab Kills . | . . . . . . . . . . . . . . . . . . . . . . . . . . . . . . . . . . . . . . . . Fab Network Shutdowns 6 | . . . . . . . . . . . . . 1 . . . . . . . 1 . 1 . . . . . . . . . 1 . 1 1 . . . Hacking | -11 -10 -10 -9 -9 -9 -8 -8 -7 -7 -7 -7 -6 -6 -6 -6 -6 -6 -6 -6 -5 -5 -5 -5 -5 -5 -5 -4 -4 -4 -4 -4 -4 -3 -3 -2 -2 -2 -1 -1 --------- Run | Scr Mat Min Mat Min Exi Min Mat Fac Low Low Dat Pro Fac Was Fac Low Low Zio Dee Pro Fac Was Fac Upp Upp War Pro Fac Ext Cet Arc Hub Res Qua Res Tes Sec Acc Com Machines Accessed 135 | . 1 . 1 1 2 . 1 1 . . 4 . 13 . 2 . 2 . . 1 9 . 14 . . 1 . 7 8 2 . 2 10 6 1 11 17 9 9 Terminals 85 | . 1 . 1 . . . 1 1 . . . . 7 . 1 . 1 . . 1 4 . 7 . . . . 5 8 2 . 2 7 4 . 7 14 4 7 Fabricators 18 | . . . . . . . . . . . . . 4 . 1 . . . . . 3 . 3 . . . . 1 . . . . 2 . 1 2 . 1 . Repair Stations 9 | . . . . . . . . . . . . . . . . . . . . . 1 . 2 . . . . . . . . . 1 1 . 1 1 1 1 Recycling Units 1 | . . . . . . . . . . . . . . . . . . . . . . . . . . . . . . . . . . . . . . . 1 Scanalyzers 3 | . . . . . . . . . . . . . 1 . . . . . . . . . . . . . . . . . . . . . . . 2 . . Garrison Access 10 | . . . . . . . . . . . . . 1 . . . . . . . 1 . 2 . . . . 1 . . . . . 1 . 1 . 3 . Total Hacks 533 | . 2 . 3 1 2 . 3 2 . . 30 . 52 . 4 . 6 . . 1 24 . 46 . . 1 . 28 31 15 . 3 42 30 3 67 71 32 34 Successful 310 | . . . 1 1 2 . 1 1 . . 30 . 30 . 4 . 6 . . 1 17 . 30 . . 1 . 14 18 9 . . 16 12 2 34 39 17 24 Failed 221 | . 2 . 2 . . . 2 1 . . . . 22 . . . . . . . 6 . 16 . . . . 14 13 6 . 3 26 18 1 33 31 15 10 Catastrophic 30 | . . . . . . . . . . . . . 3 . . . . . . . . . 2 . . . . 3 . . . 1 5 4 . 3 7 1 1 Database Lockouts 2 | . . . . . . . . . . . . . . . . . . . . . 1 . . . . . . . . . . . . . . . 1 . . Manual 218 | . 2 . 3 . 1 . 3 . . . . . 27 . . . . 5 . . 12 . 16 . . 1 . 17 14 15 . 3 8 9 . 21 36 9 16 Terminals 332 | . 2 . 3 . . . 3 2 . . . . 26 . 2 . 1 . . 1 14 . 21 . . . . 23 31 15 . 3 31 13 . 41 58 16 26 Fabricators 75 | . . . . . . . . . . . . . 21 . 2 . . . . . 7 . 15 . . . . 3 . . . . 4 . 3 15 . 5 . Repair Stations 58 | . . . . . . . . . . . . . . . . . . . . . 2 . 7 . . . . . . . . . 7 16 . 7 7 5 7 Recycling Units 1 | . . . . . . . . . . . . . . . . . . . . . . . . . . . . . . . . . . . . . . . 1 Scanalyzers 9 | . . . . . . . . . . . . . 3 . . . . . . . . . . . . . . . . . . . . . . . 6 . . Garrison Access 19 | . . . . . . . . . . . . . 2 . . . . . . . 1 . 3 . . . . 2 . . . . . 1 . 4 . 6 . Terminal Hacks 155 | . . . 1 1 2 . 1 1 . . 30 . 6 . 2 . 6 . . 1 3 . 9 . . 1 . 5 15 6 . . 7 2 . 16 23 7 10 Record 19 | . . . . . 1 . . . . . 11 . . . . . 6 . . 1 . . . . . . . . . . . . . . . . . . . Part Schematic 15 | . . . . . . . . . . . 10 . . . . . . . . . 1 . 2 . . . . . . . . . . . . 2 . . . Robot Schematic 6 | . . . . . . . . . . . 6 . . . . . . . . . . . . . . . . . . . . . . . . . . . . Robot Analysis 3 | . . . . . . . . . . . . . . . . . . . . . . . . . . . . . . 1 . . . . . . 2 . . Prototype ID Bank 5 | . . . . . . . . . . . 3 . . . . . . . . . . . . . . . . . . . . . . . . . . . 2 Open Door 19 | . . . . 1 . . . . . . . . . . . . . . . . . . . . . 1 . 1 6 1 . . 1 . . 1 5 1 1 Branch Access Points 9 | . . . 1 . . . 1 1 . . . . 1 . 1 . . . . . 1 . 1 . . . . 1 . . . . 1 . . . . . . Emergency Access Points 1 | . . . . . . . . . . . . . . . . . . . . . . . . . . . . . . . . . . . . . . . 1 Machine Index 3 | . . . . . . . . . . . . . . . . . . . . . . . . . . . . . . . . . 1 . . . 1 . 1 Terminal Index 2 | . . . . . . . . . . . . . 1 . . . . . . . . . . . . . . . . . . . . . . . . 1 . Fabricator Index 4 | . . . . . . . . . . . . . 1 . . . . . . . . . 1 . . . . . . . . . . . . 1 1 . . Repair Station Index 1 | . . . . . . . . . . . . . . . . . . . . . . . . . . . . 1 . . . . . . . . . . . Alert Level 9 | . . . . . . . . . . . . . . . . . . . . . . . 1 . . . . 1 2 . . . 1 1 . 1 1 . 1 Unreport Threat 28 | . . . . . . . . . . . . . . . . . . . . . . . 1 . . . . 1 4 4 . . 3 . . 3 5 4 3 Locate Traps 7 | . . . . . . . . . . . . . 2 . 1 . . . . . . . . . . . . . . . . . . 1 . 1 1 1 . Disarm Traps 6 | . . . . . . . . . . . . . . . . . . . . . . . . . . . . . 2 . . . . . . 2 2 . . Dispatch Records 1 | . . . . . . . . . . . . . . . . . . . . . . . . . . . . . . . . . . . . 1 . . . Recall Extermination 2 | . . . . . . . . . . . . . . . . . . . . . . . 1 . . . . . . . . . . . . . 1 . . Recall Reinforcements 2 | . . . . . . . . . . . . . . . . . . . . . . . . . . . . . . . . . . . . 1 1 . . Hauler Manifests 5 | . . . . . . . . . . . . . 1 . . . . . . . 1 . 1 . . . . . . . . . . . . . 2 . . Registered Prototypes 1 | . . . . . . . . . . . . . . . . . . . . . . . 1 . . . . . . . . . . . . . . . . Zone Layout 5 | . . . . . . . . . . . . . . . . . . . . . . . . . . . . . 1 . . . . . . 3 1 . . EX-Prototype ID Bank 1 | . . . . . 1 . . . . . . . . . . . . . . . . . . . . . . . . . . . . . . . . . . Disengage Seal 1 | . . . . . . . . . . . . . . . . . . . . . . . . . . . . . . . . . . . . . . . 1 Fabricator Hacks 44 | . . . . . . . . . . . . . 13 . 2 . . . . . 5 . 9 . . . . 1 . . . . 3 . 2 6 . 3 . Network Status 3 | . . . . . . . . . . . . . 1 . . . . . . . . . 1 . . . . . . . . . 1 . . . . . . Load Schematic 19 | . . . . . . . . . . . . . 5 . 1 . . . . . 3 . 3 . . . . 1 . . . . 1 . 1 3 . 1 . Build 22 | . . . . . . . . . . . . . 7 . 1 . . . . . 2 . 5 . . . . . . . . . 1 . 1 3 . 2 . Repair Station Hacks 33 | . . . . . . . . . . . . . . . . . . . . . 2 . 4 . . . . . . . . . 4 7 . 3 5 3 5 Scan Component 19 | . . . . . . . . . . . . . . . . . . . . . 1 . 2 . . . . . . . . . 2 4 . 2 3 2 3 Repair 14 | . . . . . . . . . . . . . . . . . . . . . 1 . 2 . . . . . . . . . 2 3 . 1 2 1 2 Recycling Unit Hacks 1 | . . . . . . . . . . . . . . . . . . . . . . . . . . . . . . . . . . . . . . . 1 Report Inventory 1 | . . . . . . . . . . . . . . . . . . . . . . . . . . . . . . . . . . . . . . . 1 Scanalyzer 6 | . . . . . . . . . . . . . 1 . . . . . . . . . . . . . . . . . . . . . . . 5 . . Insert Component 6 | . . . . . . . . . . . . . 1 . . . . . . . . . . . . . . . . . . . . . . . 5 . . Garrison Access Hacks 8 | . . . . . . . . . . . . . . . . . . . . . 1 . 1 . . . . 1 . . . . . 1 . 1 . 3 . Seal Access 8 | . . . . . . . . . . . . . . . . . . . . . 1 . 1 . . . . 1 . . . . . 1 . 1 . 3 . Unauthorized Hacks 63 | . . . . . . . . . . . . . 10 . . . . . . . 6 . 7 . . . . 7 3 3 . . 2 2 . 8 6 1 8 Terminals 52 | . . . . . . . . . . . . . 5 . . . . . . . 5 . 4 . . . . 7 3 3 . . 2 2 . 6 6 1 8 Track 14 | . . . . . . . . . . . . . 1 . . . . . . . . . . . . . . 2 . 1 . . . 1 . 2 3 . 4 Assimilate 10 | . . . . . . . . . . . . . 1 . . . . . . . 2 . 2 . . . . 3 . . . . . . . . 1 . 1 Botnet 22 | . . . . . . . . . . . . . 2 . . . . . . . 3 . 2 . . . . 2 3 1 . . 1 . . 3 2 1 2 Disrupt 3 | . . . . . . . . . . . . . . . . . . . . . . . . . . . . . . 1 . . 1 1 . . . . . Operators 3 | . . . . . . . . . . . . . 1 . . . . . . . . . . . . . . . . . . . . . . 1 . . 1 Fabricators 11 | . . . . . . . . . . . . . 5 . . . . . . . 1 . 3 . . . . . . . . . . . . 2 . . . Report 2 | . . . . . . . . . . . . . 1 . . . . . . . . . 1 . . . . . . . . . . . . . . . . Prioritize 3 | . . . . . . . . . . . . . 1 . . . . . . . . . 1 . . . . . . . . . . . . 1 . . . Siphon 5 | . . . . . . . . . . . . . 2 . . . . . . . 1 . 1 . . . . . . . . . . . . 1 . . . Haulers 1 | . . . . . . . . . . . . . 1 . . . . . . . . . . . . . . . . . . . . . . . . . . Repair Stations . | . . . . . . . . . . . . . . . . . . . . . . . . . . . . . . . . . . . . . . . . Recycling Units . | . . . . . . . . . . . . . . . . . . . . . . . . . . . . . . . . . . . . . . . . Scanalyzers . | . . . . . . . . . . . . . . . . . . . . . . . . . . . . . . . . . . . . . . . . Garrison Access . | . . . . . . . . . . . . . . . . . . . . . . . . . . . . . . . . . . . . . . . . Data Cores Recovered 1 | . . . . . . . . . . . . . . . . . . . . . . . . . . . . . . . . 1 . . . . . . . Used . | . . . . . . . . . . . . . . . . . . . . . . . . . . . . . . . . . . . . . . . . Hacking Detections 109 | . 1 . 1 . . . 1 1 . . . . 12 . 2 . . . . . 8 . 13 . . . . 7 6 2 . 2 9 5 1 11 12 7 8 Full Trace Events 6 | . . . . . . . . . . . . . 1 . . . . . . . . . . . . . . 2 . . . . . 1 . 1 . 1 . Feedback Events 2 | . . . . . . . . . . . . . . . . . . . . . . . . . . . . 2 . . . . . . . . . . . Corruption 2 | . . . . . . . . . . . . . . . . . . . . . . . . . . . . 2 . . . . . . . . . . . Feedback Blocked . | . . . . . . . . . . . . . . . . . . . . . . . . . . . . . . . . . . . . . . . . Robot Schematics Acquired 6 | . . . . . . . . . . . 6 . . . . . . . . . . . . . . . . . . . . . . . . . . . . Robots Built . | . . . . . . . . . . . . . . . . . . . . . . . . . . . . . . . . . . . . . . . . Matter . | . . . . . . . . . . . . . . . . . . . . . . . . . . . . . . . . . . . . . . . . Time . | . . . . . . . . . . . . . . . . . . . . . . . . . . . . . . . . . . . . . . . . Total Robot Build Rating . | . . . . . . . . . . . . . . . . . . . . . . . . . . . . . . . . . . . . . . . . Part Schematics Acquired 15 | . . . . . . . . . . . 10 . . . . . . . . . 1 . 2 . . . . . . . . . . . . 2 . . . Parts Built 24 | . . . . . . . . . . . . . 6 . 2 . . . . . 3 . 4 . . . . . . . . . 1 . 1 3 . 4 . Matter 4749 | . . . . . . . . . . . . . 1108 . 212 . . . . . 477 . 1093 . . . . . . . . . 285 . 285 733 . 556 . Time 1625 | . . . . . . . . . . . . . 450 . 53 . . . . . 190 . 388 . . . . . . . . . 50 . 76 326 . 92 . Total Part Build Rating 157 | . . . . . . . . . . . . . 33 . 12 . . . . . 18 . 21 . . . . . . . . . 5 . 5 27 . 36 . Parts Repaired 14 | . . . . . . . . . . . . . . . . . . . . . 1 . 2 . . . . . . . . . 2 3 . 1 2 1 2 Time 363 | . . . . . . . . . . . . . . . . . . . . . 25 . 71 . . . . . . . . . 16 108 . 13 34 36 60 Parts Recycled . | . . . . . . . . . . . . . . . . . . . . . . . . . . . . . . . . . . . . . . . . Recycled Matter . | . . . . . . . . . . . . . . . . . . . . . . . . . . . . . . . . . . . . . . . . Retrieved Matter . | . . . . . . . . . . . . . . . . . . . . . . . . . . . . . . . . . . . . . . . . Retrieved Components . | . . . . . . . . . . . . . . . . . . . . . . . . . . . . . . . . . . . . . . . . Parts Scanalyzed 1 | . . . . . . . . . . . . . 1 . . . . . . . . . . . . . . . . . . . . . . . . . . Part Schematics Acquired . | . . . . . . . . . . . . . . . . . . . . . . . . . . . . . . . . . . . . . . . . Parts Damaged . | . . . . . . . . . . . . . . . . . . . . . . . . . . . . . . . . . . . . . . . . Bothacking | -11 -10 -10 -9 -9 -9 -8 -8 -7 -7 -7 -7 -6 -6 -6 -6 -6 -6 -6 -6 -5 -5 -5 -5 -5 -5 -5 -4 -4 -4 -4 -4 -4 -3 -3 -2 -2 -2 -1 -1 ------------ Run | Scr Mat Min Mat Min Exi Min Mat Fac Low Low Dat Pro Fac Was Fac Low Low Zio Dee Pro Fac Was Fac Upp Upp War Pro Fac Ext Cet Arc Hub Res Qua Res Tes Sec Acc Com Used RIF Installer . | . . . . . . . . . . . . . . . . . . . . . . . . . . . . . . . . . . . . . . . . Robots Hacked 3 | . . . . . . . . . . . . . . . . . . . . . 1 . 1 . . . . . . . . . . . . . . . 1 Non-combat 2 | . . . . . . . . . . . . . . . . . . . . . 1 . 1 . . . . . . . . . . . . . . . . Combat 1 | . . . . . . . . . . . . . . . . . . . . . . . . . . . . . . . . . . . . . . . 1 Robot Hacks Applied 3 | . . . . . . . . . . . . . . . . . . . . . 1 . 1 . . . . . . . . . . . . . . . 1 parse_system 1 | . . . . . . . . . . . . . . . . . . . . . . . . . . . . . . . . . . . . . . . 1 find_chute 1 | . . . . . . . . . . . . . . . . . . . . . 1 . . . . . . . . . . . . . . . . . . find_fabricator 1 | . . . . . . . . . . . . . . . . . . . . . . . 1 . . . . . . . . . . . . . . . . Relay Couplers Released 3 | . . . . . . . . . . . . . . . . . . . . . 3 . . . . . . . . . . . . . . . . . . Programmers 3 | . . . . . . . . . . . . . . . . . . . . . 3 . . . . . . . . . . . . . . . . . . Robots Rewired 28 | . . . . . . . . . 6 1 . . . . . . . . . . . . . . . 4 . . 17 . . . . . . . . . . Allies Hacked . | . . . . . . . . . . . . . . . . . . . . . . . . . . . . . . . . . . . . . . . . Hacks Repelled . | . . . . . . . . . . . . . . . . . . . . . . . . . . . . . . . . . . . . . . . . Allies | -11 -10 -10 -9 -9 -9 -8 -8 -7 -7 -7 -7 -6 -6 -6 -6 -6 -6 -6 -6 -5 -5 -5 -5 -5 -5 -5 -4 -4 -4 -4 -4 -4 -3 -3 -2 -2 -2 -1 -1 -------- Run | Scr Mat Min Mat Min Exi Min Mat Fac Low Low Dat Pro Fac Was Fac Low Low Zio Dee Pro Fac Was Fac Upp Upp War Pro Fac Ext Cet Arc Hub Res Qua Res Tes Sec Acc Com Total Allies 82 | . . . . . . . . . 6 1 . . . 20 . . . 12 . . 2 . 2 . . 4 . 2 26 5 . . . . . . 1 . 1 Largest Group 20 | . . . . . . . . . 5 4 . . . 20 1 . . 12 12 2 2 2 1 1 1 4 . 2 12 11 5 5 . . . . 1 . 1 Highest-Rated Group 745 | . . . . . . . . . 117 97 . . . 745 25 . . 480 480 125 125 52 26 26 26 196 . 36 609 638 295 295 . . . . 44 . 44 Highest-Rated Ally 156 | . . . . . . . . . 32 32 . . . 50 25 . . 94 94 94 94 26 26 26 26 49 . 26 156 156 94 94 . . . . 44 . 44 Total Orders 13 | . . . . . . . . . . 2 . . . . . . . . . . . . 2 . . . . 4 . . . 1 1 1 . . . . 2 STAY 5 | . . . . . . . . . . 1 . . . . . . . . . . . . 1 . . . . 1 . . . 1 . . . . . . 1 FOLLOW 3 | . . . . . . . . . . 1 . . . . . . . . . . . . 1 . . . . . . . . . . . . . . . 1 EXPLORE 1 | . . . . . . . . . . . . . . . . . . . . . . . . . . . . . . . . . . 1 . . . . . RETURN 4 | . . . . . . . . . . . . . . . . . . . . . . . . . . . . 3 . . . . 1 . . . . . . Ally Attacks 684 | . . . . . . . . . 13 9 . . . 146 3 . . . 101 2 8 . . . . 20 . 33 157 59 12 49 72 . . . . . . Total Damage 20158 | . . . . . . . . . 254 228 . . . 4714 46 . . . 2054 122 310 . . . . 857 . 755 4755 2088 481 1668 1826 . . . . . . Kills 102 | . . . . . . . . . 2 2 . . . 11 . . . . 15 2 . . . . . 6 . 6 26 9 1 8 14 . . . . . . Allies Corrupted 2 | . . . . . . . . . . . . . . . . . . . . . . . . . . 1 . . . 1 . . . . . . . . . Allies Melted . | . . . . . . . . . . . . . . . . . . . . . . . . . . . . . . . . . . . . . . . . Intel | -11 -10 -10 -9 -9 -9 -8 -8 -7 -7 -7 -7 -6 -6 -6 -6 -6 -6 -6 -6 -5 -5 -5 -5 -5 -5 -5 -4 -4 -4 -4 -4 -4 -3 -3 -2 -2 -2 -1 -1 ------- Run | Scr Mat Min Mat Min Exi Min Mat Fac Low Low Dat Pro Fac Was Fac Low Low Zio Dee Pro Fac Was Fac Upp Upp War Pro Fac Ext Cet Arc Hub Res Qua Res Tes Sec Acc Com Robot Analysis Total 3 | . . . . . . . . . . . . . . . . . . . . . . . . . . . . . . 1 . . . . . . 2 . . Derelict Logs Recovered 10 | . . . . . . . . . . 1 . 2 . . . 1 1 1 . 2 . . . 1 1 . . . . . . . . . . . . . . Drone Launches 35 | . . . . . . . . . . . . . . . . . . . . . . . . . . . . 8 . . . . 21 6 . . . . . Drone Recoveries 9 | . . . . . . . . . . . . . . . . . . . . . . . . . . . . 8 . . . . . 1 . . . . . Exploration | -11 -10 -10 -9 -9 -9 -8 -8 -7 -7 -7 -7 -6 -6 -6 -6 -6 -6 -6 -6 -5 -5 -5 -5 -5 -5 -5 -4 -4 -4 -4 -4 -4 -3 -3 -2 -2 -2 -1 -1 ------------- Run | Scr Mat Min Mat Min Exi Min Mat Fac Low Low Dat Pro Fac Was Fac Low Low Zio Dee Pro Fac Was Fac Upp Upp War Pro Fac Ext Cet Arc Hub Res Qua Res Tes Sec Acc Com Turns Passed 26679 | . 114 218 769 514 886 300 962 316 879 991 306 434 2231 92 272 242 305 1006 672 264 722 170 1306 175 272 812 278 1150 1113 308 122 855 1056 1129 620 1461 1286 1108 963 Spaces Moved 20812 | 1 94 127 396 313 493 133 422 155 339 439 140 205 1620 101 255 362 373 794 716 296 595 182 1048 239 276 874 360 811 501 158 53 293 807 523 731 1119 1829 1219 1420 Core 51 | . . . . . . . . . . . . . . . . . . . . . . . . . . . . 51 . . . . . . . . . . . Treads 4076 | . . . 198 313 493 133 422 155 339 439 140 205 36 . . . . . . . . . . . . . . 7 119 158 53 293 193 380 . . . . . Legs 462 | 1 94 127 198 . . . . . . . . . . . . . . . . . . . . . . . . . 42 . . . . . . . . . . Wheels 1153 | . . . . . . . . . . . . . 441 . . . . . . . . . . . . . . 372 340 . . . . . . . . . . Hover 15070 | . . . . . . . . . . . . . 1143 101 255 362 373 794 716 296 595 182 1048 239 276 874 360 381 . . . . 614 143 731 1119 1829 1219 1420 Flight . | . . . . . . . . . . . . . . . . . . . . . . . . . . . . . . . . . . . . . . . . Fastest Speed 18 | 120 120 120 120 160 160 200 200 185 205 205 205 205 40 46 40 40 53 46 46 48 55 68 68 68 68 60 60 46 105 160 160 160 18 46 65 29 26 22 22 Average Speed 85 | 120 120 120 140 160 178 200 200 197 205 205 205 205 82 49 64 52 55 119 62 51 64 70 68 68 68 73 60 87 134 163 160 161 70 132 66 61 34 23 32 Slowest Speed 290 | 120 120 120 160 160 200 200 200 205 205 205 205 205 242 53 118 53 118 146 128 55 128 138 142 68 68 125 60 290 180 180 160 180 180 160 128 143 148 44 124 Overloaded Moves 651 | . . . . . . . . . . . . . 20 44 2 18 . 15 250 157 . . . . . . . 1 . . . . 144 . . . . . . Propulsion Burnouts . | . . . . . . . . . . . . . . . . . . . . . . . . . . . . . . . . . . . . . . . . Robots Hopped . | . . . . . . . . . . . . . . . . . . . . . . . . . . . . . . . . . . . . . . . . Cave-ins Triggered 1 | . . . . . . . . . . . . . . . . . . . . . . . . . . 1 . . . . . . . . . . . . . Exploration Rate (%) 49 | 2 16 35 42 68 65 58 40 4 64 70 82 50 43 64 9 57 66 84 72 54 15 75 24 44 50 89 55 17 64 63 68 35 20 75 24 78 79 28 43 Regions Visited 39 Branch Regions 25 Pre-discovered Areas 4 | . . . . . . . . . . . 1 . . . . . 1 1 . . . . . . 1 . . . . . . . . . . . . . . Known Exits Taken 23 | . . . 1 . . . . 1 . . . . . . 1 1 1 1 1 1 . . 1 1 1 1 1 1 1 1 1 1 1 . 1 1 1 1 . Unknown Exits Taken 12 | 1 1 1 . 1 1 1 1 . 1 1 1 1 . . . . . . . . . . . . . . . . . . . . . 1 . . . . . Scrap Searched 22 | . . 2 . 1 . 2 . . 3 1 . 1 . . . 1 4 3 . . . . . . 2 . 2 . . . . . . . . . . . . Spaces Dug 168 | . . . . . . . . . . 1 . . 21 1 2 6 5 . . . 5 . 10 . . 1 . 10 5 . . 11 19 5 4 29 7 23 3 Terrain Destroyed 1596 | . . 11 37 . . 41 101 . 53 50 . 33 43 1 8 6 11 . . . 5 . 59 52 129 68 101 126 16 12 . 317 23 6 8 89 39 31 120 Melee 85 | . . . . . . . . . . 1 . . 21 1 2 3 3 . . . 5 . 10 . . 1 . 10 4 . . 5 16 . 2 1 . . . Projectile 121 | . . . . . . . . . . . . . . . . 3 8 . . . . . . . . . . 13 12 . . 9 4 6 6 10 17 22 11 AOE 1390 | . . 11 37 . . 41 101 . 53 49 . 33 22 . 6 . . . . . . . 49 52 129 67 101 103 . 12 . 303 3 . . 78 22 9 109 Terrain Rammed . | . . . . . . . . . . . . . . . . . . . . . . . . . . . . . . . . . . . . . . . . Walls Destroyed . | . . . . . . . . . . . . . . . . . . . . . . . . . . . . . . . . . . . . . . . . Machines Disabled . | . . . . . . . . . . . . . . . . . . . . . . . . . . . . . . . . . . . . . . . . Actions | -11 -10 -10 -9 -9 -9 -8 -8 -7 -7 -7 -7 -6 -6 -6 -6 -6 -6 -6 -6 -5 -5 -5 -5 -5 -5 -5 -4 -4 -4 -4 -4 -4 -3 -3 -2 -2 -2 -1 -1 --------- Run | Scr Mat Min Mat Min Exi Min Mat Fac Low Low Dat Pro Fac Was Fac Low Low Zio Dee Pro Fac Was Fac Upp Upp War Pro Fac Ext Cet Arc Hub Res Qua Res Tes Sec Acc Com Total 27982 | . 96 157 520 321 502 162 513 165 484 497 157 213 2345 129 353 400 451 851 902 396 895 228 1557 245 331 1034 393 1130 853 194 75 575 1236 816 857 1854 2336 1914 1845 Wait 3773 | . . 5 31 2 . 23 36 . 26 10 2 . 462 . 76 16 50 48 122 89 240 25 401 2 3 99 8 131 68 7 3 115 180 126 17 458 196 511 185 Move 20773 | . 93 126 395 312 492 132 421 154 338 438 139 204 1620 100 254 361 372 793 715 295 595 181 1047 238 275 872 359 810 500 157 52 292 806 522 730 1118 1828 1218 1419 Hop . | . . . . . . . . . . . . . . . . . . . . . . . . . . . . . . . . . . . . . . . . Pick Up 351 | . 1 2 9 1 3 1 13 3 9 9 2 3 35 2 4 2 2 4 6 . 6 3 13 . 10 10 . 23 11 3 1 3 20 16 14 38 34 15 20 Fast Attach 223 | . . . 10 . 1 . 4 3 1 . . . 12 1 2 1 1 . 5 . 5 2 8 . 4 5 . 19 12 3 . 5 14 13 17 22 27 9 17 Attach 236 | . . . 2 . . . 1 . 1 4 1 . 12 4 1 2 2 1 2 . 5 6 5 . . 2 . 21 7 . . 13 22 16 8 27 44 6 21 Detach 234 | . . . 5 . 1 . 1 . . 4 . . 10 4 1 2 3 . 3 . 3 6 3 . 3 4 . 13 3 3 . 12 19 12 11 33 38 13 24 Swap 297 | . . 2 4 1 2 1 3 1 2 2 3 1 24 . 5 3 3 1 11 6 7 . 21 1 1 7 9 4 8 1 2 26 22 8 3 26 29 26 21 Drop 372 | . 2 1 11 2 3 . 5 4 9 1 4 . 47 3 5 3 2 4 8 . 6 5 7 . 11 12 . 14 10 8 1 4 22 9 17 42 34 21 35 Fire 1118 | . . 21 53 3 . 5 27 . 35 13 1 5 40 14 2 3 13 . 22 4 6 . 11 4 10 6 9 42 54 12 16 91 92 92 38 84 96 95 99 Melee 334 | . . . . . . . . . 1 12 1 . 70 1 3 7 3 . 8 2 22 . 41 . 14 1 8 53 21 . . 11 33 . 2 6 10 . 4 Ram 6 | . . . . . . . . . . . . . . . . . . . . . . . . . . . . . . . . . 6 . . . . . . Kick . | . . . . . . . . . . . . . . . . . . . . . . . . . . . . . . . . . . . . . . . . Crush 3 | . . . . . . . . . . . . . . . . . . . . . . . . . . . . . . . . 3 . . . . . . . Escape Stasis 22 | . . . . . . . . . . . . . 13 . . . . . . . . . . . . 1 . . 8 . . . . . . . . . . Rewire 234 | . . . . . . . 2 . 62 4 . . . . . . . . . . . . . . . 15 . . 151 . . . . . . . . . . Trap 4 | . . . . . . . . . . . 4 . . . . . . . . . . . . . . . . . . . . . . . . . . . . Miscellaneous 2 | . . . . . . . . . . . . . . . . . . . . . . . . . . . . . . . . . . 2 . . . . . Route ------- -11/Scrapyard -10/Materials -10/Mines -9/Materials (discovered 3 exits: *Mat / *Min x2) -9/Mines (discovered 2 exits: *Mat / *Exi) -9/Exiles -8/Mines -8/Materials -7/Factory (discovered 4 exits: Sto x2 / *Low x2) -7/Lower Caves -7/Lower Caves -7/Data Miner -6/Proximity Caves -6/Factory (discovered 3 exits: *Fac / Low x2) -6/Waste -6/Factory (discovered 2 exits: *Low x2) -6/Lower Caves -6/Lower Caves (discovered 2 exits: *Fac / *Zio) -6/Zion (discovered 2 exits: *Dee / [*Pro]) -6/Deep Caves -5/Proximity Caves -5/Factory (discovered 5 exits: *Fac x3 / Upp x2) -5/Waste -5/Factory (discovered 3 exits: *Fac / *Upp x2) -5/Upper Caves -5/Upper Caves -5/Warlord -4/Proximity Caves -4/Factory (discovered 4 exits: *Upp x2 / *Ext x2) -4/Extension (discovered 2 exits: *Res / *Cet) -4/Cetus (discovered 2 exits: *Res / *Arc) -4/Archives -4/Hub_04(d) (discovered 2 exits: *Res x2) -3/Research (discovered 3 exits: Arm / *Qua x2) -3/Quarantine -2/Research -2/Testing (discovered 2 exits: *Acc / *Sec) -2/Section 7 -1/Access -1/Command 0b11 Command History --------- Turn | Location | Event 1 | -11/Scrapyard | Discovered new exit (range 0) 1 | -11/Scrapyard | Entered Materials 94 | -10/Materials | Discovered new exit (range 12) 115 | -10/Materials | Entered Mines 153 | -10/Mines | Received a Rocket Launcher from a helpful Derelict 308 | -10/Mines | Build established: Mutant 327 | -10/Mines | Discovered new exit (range 5) 333 | -10/Mines | Entered Materials 333 | -9/Materials | Evolved 2 slots: Utility x2 368 | -9/Materials | Identified exit to Mines 882 | -9/Materials | Discovered new exit (range 15) 1019 | -9/Materials | Build established: Scavenger-Mutant 1102 | -9/Materials | Entered Mines 1107 | -9/Mines | Assembled infested the area 1139 | -9/Mines | Met 8R-AWN 1225 | -9/Mines | Met a Derelict who couldn't figure out how to use a Trap Extractor 1339 | -9/Mines | Discovered new exit (range 15) 1522 | -9/Mines | Build established: Mutant 1609 | -9/Mines | Discovered new exit (range 5) 1616 | -9/Mines | Entered Exiles 1656 | -9/Exiles | Welcomed by 8R-AWN 1679 | -9/Exiles | Met EX-HEX 1752 | -9/Exiles | Met EX-DEC 1799 | -9/Exiles | Met EX-BIN 1844 | -9/Exiles | Learned about 8R-AWN's background 1916 | -9/Exiles | Aligned with FarCom system 1917 | -9/Exiles | Given EX-Vault access code 2237 | -9/Exiles | Opened EX-Vault 2253 | -9/Exiles | Found Army-in-a-Box 2260 | -9/Exiles | Found Superbattery 2263 | -9/Exiles | Found XL Autogun Array 2345 | -9/Exiles | Build established: Hauler-Mutant 2350 | -9/Exiles | Warned to stay clear of 0b10 Research branches 2482 | -9/Exiles | Discovered new exit (range 11) 2502 | -9/Exiles | Stole three prototypes: Superbattery, Army-in-a-Box, XL Autogun Array 2502 | -9/Exiles | Entered Mines 2786 | -8/Mines | Discovered new exit (range 9) 2802 | -8/Mines | Entered Materials 2802 | -8/Materials | Evolved 2 slots: Utility x2 3756 | -8/Materials | Discovered new exit (range 4) 3764 | -8/Materials | Entered Factory 3764 | -7/Factory | Evolved 2 slots: Utility x2 3766 | -7/Factory | FarCom data flow suspended 3842 | -7/Factory | Identified exit to Storage 3842 | -7/Factory | Identified exit to Lower Caves 4080 | -7/Factory | Entered Lower Caves 4359 | -7/Lower Caves | Spotted B-75 Beast 4471 | -7/Lower Caves | Attacked by a delusional Derelict stockpiling Unaware 4607 | -7/Lower Caves | Attracted the attention of an 0b10 outpost 4650 | -7/Lower Caves | Destroyed 8 combat bots 4747 | -7/Lower Caves | Encountered a Warlord checkpoint 4872 | -7/Lower Caves | Spotted 3R-GWQ(f) 4873 | -7/Lower Caves | Encountered a Master Thief 4873 | -7/Lower Caves | Spotted OT-2KB(f) 4874 | -7/Lower Caves | Encountered a Master Thief 4875 | -7/Lower Caves | Dirty Bomb Trap stolen by Master Thief 4876 | -7/Lower Caves | Dirty Bomb Trap stolen by Master Thief 4931 | -7/Lower Caves | Discovered new exit (range 11) 4959 | -7/Lower Caves | Entered another Lower Caves area 4959 | -7/Lower Caves | Accompanied by 4 allies 4973 | -7/Lower Caves | Encountered a Warlord checkpoint 5038 | -7/Lower Caves | Learned 4 Factory zone layouts 5155 | -7/Lower Caves | Attracted the attention of an 0b10 outpost 5222 | -7/Lower Caves | P-60 Hacker assimilated allied Trooper 4a 5916 | -7/Lower Caves | Discovered new exit (range 16) 5950 | -7/Lower Caves | Entered Data Miner 5950 | -7/Data Miner | Discovered new exit (range 6) 5977 | -7/Data Miner | Met Data Miner 6039 | -7/Data Miner | Learned location of Section 7 (-2) 6039 | -7/Data Miner | Acquired the access code to Warlord's prototype stash 6076 | -7/Data Miner | Received God Mode back door access code from Data Miner 6185 | -7/Data Miner | Data Conduit disabled 6256 | -7/Data Miner | Entered Proximity Caves 6334 | -6/Proximity Caves | Learned Factory stockpile data 6351 | -6/Proximity Caves | Learned Factory emergency access door positions 6653 | -6/Proximity Caves | Discovered new exit (range 13) 6690 | -6/Proximity Caves | Entered Factory 6690 | -6/Factory | Evolved 2 slots: Propulsion x2 6732 | -6/Factory | Identified exit to Lower Caves 7829 | -6/Factory | Fabricated Exp. Sensor Array (x1) 7882 | -6/Factory | Fabricated Cmb. Gravmag System (x2) 7958 | -6/Factory | Fabricated Exp. Terrain Scanner (x1) 8004 | -6/Factory | Build established: Hacker-Mutant 8324 | -6/Factory | Fabricated Exp. Terrain Scan Processor? 8435 | -6/Factory | Fabricated Mni. Smartbomb Launcher? 8661 | -6/Factory | Discovered new exit (range 6) 8758 | -6/Factory | Found Prototype Processor 8758 | -6/Factory | Identified Exp. Signal Interpreter 8762 | -6/Factory | Found Exp. Signal Interpreter 8793 | -6/Factory | Local fabrication network quarantined 8921 | -6/Factory | Manually triggered Chute Trap 8921 | -6/Factory | Sucked down chute 8921 | -6/Factory | Entered Waste 8922 | -6/Waste | Met a frightened Derelict 8936 | -6/Waste | EMP discharged 8939 | -6/Waste | Met Warlord forces unprepared to attack 8956 | -6/Waste | Spotted C-40 Crusher 8956 | -6/Waste | Allies destroyed C-40 Crusher 8957 | -6/Waste | Spotted C-40 Crusher 8975 | -6/Waste | Allies destroyed C-40 Crusher 8978 | -6/Waste | Allies destroyed C-40 Crusher 8979 | -6/Waste | Spotted C-40 Crusher 8982 | -6/Waste | Allies destroyed C-40 Crusher 8982 | -6/Waste | Spotted C-40 Crusher 8989 | -6/Waste | Spotted C-40 Crusher 8992 | -6/Waste | Allies destroyed C-40 Crusher 8994 | -6/Waste | Found Damper Plating 8998 | -6/Waste | Allies destroyed C-40 Crusher 9006 | -6/Waste | Discovered new exit (range 16) 9013 | -6/Waste | Identified exit to Factory 9013 | -6/Waste | Entered Factory 9013 | -6/Factory | Accompanied by 1 ally 9055 | -6/Factory | Build established: Hauler-Mutant 9153 | -6/Factory | Fabricated Lance (x2) 9285 | -6/Factory | Entered Lower Caves 9368 | -6/Lower Caves | Spotted B-75 Beast 9422 | -6/Lower Caves | Encountered a Warlord checkpoint 9478 | -6/Lower Caves | Learned Factory terminal intel 9515 | -6/Lower Caves | Discovered new exit (range 11) 9526 | -6/Lower Caves | Identified exit to Lower Caves 9527 | -6/Lower Caves | Entered another Lower Caves area 9542 | -6/Lower Caves | Discovered new exit (range 9) 9546 | -6/Lower Caves | Identified exit to Factory 9561 | -6/Lower Caves | Encountered a Warlord checkpoint 9597 | -6/Lower Caves | Learned 12 Factory zone layouts 9733 | -6/Lower Caves | Learned Factory stockpile data 9827 | -6/Lower Caves | Discovered new exit (range 12) 9832 | -6/Lower Caves | Identified exit to Zion 9832 | -6/Lower Caves | Entered Zion 9848 | -6/Zion | Acquired unknown access codes intercepted by a Zionite 9860 | -6/Zion | Discovered new exit (range 9) 9866 | -6/Zion | Gained Derelict followers 9906 | -6/Zion | System corruption cleaned by Quarantine Array 10167 | -6/Zion | Given A8's code to call for help 10236 | -6/Zion | Gained Derelict followers 10324 | -6/Zion | Found CR-A16's Pointy Stick 10393 | -6/Zion | Found Rocket Array 10468 | -6/Zion | Found Prototype Device 10678 | -6/Zion | Learned Factory terminal intel 10763 | -6/Zion | Enhanced Grunt warped into view, answering call for help 10770 | -6/Zion | Enhanced Grunt warped into view, answering call for help 10771 | -6/Zion | Opened final containment barrier to the Deep Caves 10795 | -6/Zion | Discovered new exit (range 3) 10795 | -6/Zion | Saw the warning signs outside the Deep Caves entrance 10800 | -6/Zion | Identified exit to Deep Caves 10838 | -6/Zion | Entered Deep Caves 10838 | -6/Deep Caves | Accompanied by 12 allies 10979 | -6/Deep Caves | Attacked by Z-Imprinter 11000 | -6/Deep Caves | Allies destroyed Z-Imprinter 11032 | -6/Deep Caves | Found Prototype Device 11032 | -6/Deep Caves | Identified Zio. Metafield Generator 11037 | -6/Deep Caves | Found Prototype Protection 11037 | -6/Deep Caves | Identified Zio. Weapon Casing 11066 | -6/Deep Caves | Identified Phasing AFG 11099 | -6/Deep Caves | Z-Facility disabled 11390 | -6/Deep Caves | Discovered new exit (range 6) 11509 | -6/Deep Caves | Identified exit to Proximity Caves 11510 | -6/Deep Caves | Entered Proximity Caves 11510 | -5/Proximity Caves | Accompanied by 2 allies 11529 | -5/Proximity Caves | Learned Factory garrison access intel 11541 | -5/Proximity Caves | Learned Factory terminal intel 11604 | -5/Proximity Caves | Spotted B-75 Beast 11606 | -5/Proximity Caves | Revealed the true nature of CR-A16's Pointy Stick 11609 | -5/Proximity Caves | Destroyed B-75 Beast 11725 | -5/Proximity Caves | Discovered exit to Factory (range 13) 11772 | -5/Proximity Caves | Received a Behemoth hack from an annoying Tinkerer 11774 | -5/Proximity Caves | Entered Factory 11774 | -5/Factory | Accompanied by 2 allies 11774 | -5/Factory | Evolved 2 slots: Utility x2 11775 | -5/Factory | Identified exit to Factory 11777 | -5/Factory | Loaded intel: 20 terminal locations 11778 | -5/Factory | Loaded intel: 4 garrison access locations 11797 | -5/Factory | Identified exit to Upper Caves 11960 | -5/Factory | Fabricated Cmb. Gravmag System (x2) 12180 | -5/Factory | Fabricated Mni. Smartbomb Launcher? 12372 | -5/Factory | Local fabrication network quarantined 12404 | -5/Factory | Repaired Imp. Proton Missile Launcher 12444 | -5/Factory | Build established: Machinist-Mutant 12446 | -5/Factory | Central database locked down 12496 | -5/Factory | Manually triggered Chute Trap 12496 | -5/Factory | Sucked down chute 12496 | -5/Factory | Entered Waste 12511 | -5/Waste | EMP discharged 12526 | -5/Waste | Spotted C-40 Crusher 12552 | -5/Waste | Spotted C-40 Crusher 12558 | -5/Waste | Spotted C-40 Crusher 12562 | -5/Waste | Spotted C-40 Crusher 12564 | -5/Waste | Spotted C-40 Crusher 12565 | -5/Waste | 2 allies followed down the chute 12611 | -5/Waste | EMP discharged 12652 | -5/Waste | Spotted C-40 Crusher 12656 | -5/Waste | Discovered new exit (range 16) 12666 | -5/Waste | Identified exit to Factory 12666 | -5/Waste | Entered Factory 12667 | -5/Factory | Loaded intel: 20 terminal locations 12740 | -5/Factory | Repaired Broken Imp. Force Booster? 13076 | -5/Factory | Build established: Hauler-Mutant 13126 | -5/Factory | Discovered exit to Factory (range 14) 13477 | -5/Factory | Fabricated Exp. Utility Shielding (x1) 13523 | -5/Factory | Spotted B-75 Beast 13569 | -5/Factory | Fabricated Exp. Utility Shielding (x1) 13665 | -5/Factory | Fabricated Exp. Propulsion Shielding (x1) 13762 | -5/Factory | Fabricated Kinetic Spear (x1) 13867 | -5/Factory | Local fabrication network quarantined 13901 | -5/Factory | Repaired Cmb. Gravmag System 13972 | -5/Factory | Entered Upper Caves 13972 | -5/Upper Caves | Accompanied by 1 ally 14112 | -5/Upper Caves | Encountered a Warlord checkpoint 14117 | -5/Upper Caves | Learned Factory emergency access door positions 14141 | -5/Upper Caves | Discovered new exit (range 5) 14143 | -5/Upper Caves | Identified exit to Upper Caves 14147 | -5/Upper Caves | Entered another Upper Caves area 14147 | -5/Upper Caves | Accompanied by 1 ally 14204 | -5/Upper Caves | Spotted ZE-T9Z(f) 14205 | -5/Upper Caves | Encountered a Master Thief 14205 | -5/Upper Caves | Spotted RG-0T4(f) 14206 | -5/Upper Caves | Encountered a Master Thief 14206 | -5/Upper Caves | CR-A16's Behemoth Slayer stolen by Master Thief 14212 | -5/Upper Caves | Imp. Force Booster stolen by Master Thief 14243 | -5/Upper Caves | Encountered a Warlord checkpoint 14309 | -5/Upper Caves | Found Imp. Powered Armor 14347 | -5/Upper Caves | Spotted OE-VZE(f) 14349 | -5/Upper Caves | Encountered a Master Thief 14349 | -5/Upper Caves | Phasing AFG stolen by Master Thief 14349 | -5/Upper Caves | Spotted B3-5XH(f) 14350 | -5/Upper Caves | Encountered a Master Thief 14354 | -5/Upper Caves | Destroyed B3-5XH(f) 14405 | -5/Upper Caves | Discovered new exit (range 10) 14412 | -5/Upper Caves | Identified exit to Warlord 14419 | -5/Upper Caves | Entered Warlord 14419 | -5/Warlord | Accompanied by 1 ally 14443 | -5/Warlord | System corruption cleaned by Quarantine Array 14786 | -5/Warlord | Visited the Vortex Lab 14792 | -5/Warlord | Found Prototype Energy Gun 14792 | -5/Warlord | Identified Vortex Shotgun 14794 | -5/Warlord | Found Vortex Shotgun 14795 | -5/Warlord | Warlord's base attacked by MAIN.C 14845 | -5/Warlord | Met Warlord 14851 | -5/Warlord | Opened Warlord's prototype stash 14855 | -5/Warlord | Found Prototype Device 14855 | -5/Warlord | Identified System Purifier 14863 | -5/Warlord | Found Prototype Device 14863 | -5/Warlord | Identified Exp. Phase Shifter 14872 | -5/Warlord | Found Prototype Hackware 14876 | -5/Warlord | Found Prototype Processor 14889 | -5/Warlord | Identified Spectral Analyzer 15116 | -5/Warlord | Destroyed 7 combat bots 15130 | -5/Warlord | Warlord forces counterattacked 15134 | -5/Warlord | Spotted Striker 15161 | -5/Warlord | Spotted Striker 15178 | -5/Warlord | Crushed by falling debris 15179 | -5/Warlord | Core integrity fell below 50% 15186 | -5/Warlord | Identified Ghost Barrier 15202 | -5/Warlord | Spotted Executioner 15208 | -5/Warlord | Found Prototype Ballistic Cannon 15211 | -5/Warlord | Spotted Executioner 15220 | -5/Warlord | Found Prototype Processor 15224 | -5/Warlord | Discovered new exit (range 14) 15231 | -5/Warlord | Identified exit to Proximity Caves 15231 | -5/Warlord | Entered Proximity Caves 15442 | -4/Proximity Caves | Build established: Hacker-Mutant 15469 | -4/Proximity Caves | Attracted the attention of an 0b10 checkpoint 15503 | -4/Proximity Caves | Discovered exit to Factory (range 5) 15509 | -4/Proximity Caves | Entered Factory 15509 | -4/Factory | Evolved 2 slots: Utility x2 15511 | -4/Factory | Loaded intel: 21 terminal locations 15652 | -4/Factory | Identified exit to Upper Caves 15652 | -4/Factory | Identified exit to Extension 15874 | -4/Factory | Lost 9 parts (1p3n4u1w) 15877 | -4/Factory | Identified Hvy. Autocannon 15924 | -4/Factory | Core integrity fell below 50% 15971 | -4/Factory | Lost 3 parts (2n1w) 16289 | -4/Factory | Lost 4 parts (2n2u) 16480 | -4/Factory | Build established: Scavenger-Mutant 16659 | -4/Factory | Entered Extension 16716 | -4/Extension | Rescued A7 16730 | -4/Extension | Rescued a captive Derelict 16825 | -4/Extension | Rescued a captive Derelict 16931 | -4/Extension | Rescued a captive Derelict 16932 | -4/Extension | Rescued a captive Derelict 16950 | -4/Extension | Rescued a captive Derelict 16952 | -4/Extension | Rescued a captive Derelict 17166 | -4/Extension | Lost 4 parts (2n1u1w) 17210 | -4/Extension | Lost 3 parts (1n1u1w) 17266 | -4/Extension | Rescued a captive Derelict 17270 | -4/Extension | Rescued a captive Derelict 17727 | -4/Extension | Discovered new exit (range 10) 17729 | -4/Extension | Discovered new exit (range 6) 17755 | -4/Extension | Identified exit to Research 17767 | -4/Extension | Identified exit to Cetus 17772 | -4/Extension | Entered Cetus 17772 | -4/Cetus | Accompanied by 11 allies (A7) 17777 | -4/Cetus | Acquired a Cetus Manufacturing Module code from A7 17794 | -4/Cetus | Spotted Cetus Guard 17794 | -4/Cetus | Spotted Cetus Guard 17797 | -4/Cetus | Destroyed Cetus Guard 17797 | -4/Cetus | Spotted Cetus Guard 17800 | -4/Cetus | Spotted Cetus Guard 17811 | -4/Cetus | Allies destroyed Cetus Guard 17816 | -4/Cetus | Destroyed Cetus Guard 17817 | -4/Cetus | Allies destroyed Cetus Guard 17822 | -4/Cetus | Identified Exp. Core Analyzer 17905 | -4/Cetus | Started Cetus Manufacturing Module 17930 | -4/Cetus | Manufactured an Enhanced Grunt 17931 | -4/Cetus | Discovered new exit (range 15) 17955 | -4/Cetus | Manufactured an Enhanced Grunt 17957 | -4/Cetus | Spotted Cetus Guard 17960 | -4/Cetus | Spotted Cetus Guard 17962 | -4/Cetus | Destroyed Cetus Guard 17963 | -4/Cetus | Spotted Cetus Guard 17964 | -4/Cetus | Spotted Cetus Guard 17968 | -4/Cetus | Allies destroyed Cetus Guard 17975 | -4/Cetus | Destroyed Cetus Guard 17976 | -4/Cetus | Destroyed Cetus Guard 17980 | -4/Cetus | Manufactured an Enhanced Grunt 17984 | -4/Cetus | Discovered exit to Research (range 15) 17994 | -4/Cetus | Met Revision 17 18005 | -4/Cetus | Manufactured an Enhanced Grunt 18030 | -4/Cetus | Manufactured an Enhanced Grunt 18071 | -4/Cetus | Identified exit to Archives 18080 | -4/Cetus | Entered Archives 18080 | -4/Archives | Accompanied by 6 allies (A7) 18169 | -4/Archives | Discovered new exit (range 15) 18193 | -4/Archives | Identified exit to Hub_04(d) 18202 | -4/Archives | Entered Hub_04(d) 18202 | -4/Hub_04(d) | Accompanied by 5 allies 18330 | -4/Hub_04(d) | Garrison activated, responded to threat 18383 | -4/Hub_04(d) | Destroyed 9 combat bots 18450 | -4/Hub_04(d) | Discovered exit to Research (range 15) 18657 | -4/Hub_04(d) | Discovered exit to Research (range 3) 18932 | -4/Hub_04(d) | Network Hub disabled 18932 | -4/Hub_04(d) | Network Hub disabled 18952 | -4/Hub_04(d) | First assault squad dispatched 18952 | -4/Hub_04(d) | Spotted Lightning 18979 | -4/Hub_04(d) | Garrison activated, responded to threat 19057 | -4/Hub_04(d) | Entered Research 19057 | -3/Research | Evolved 2 slots: Utility x2 19060 | -3/Research | Destroyed 9 combat bots 19064 | -3/Research | Lost 5 parts (4u1w) 19098 | -3/Research | Found Quantum Capacitor 19222 | -3/Research | Garrison activated, responded to threat 19321 | -3/Research | Found Prototype Slashing Weapon 19323 | -3/Research | Found Prototype Slashing Weapon 19331 | -3/Research | Found Exp. Targeting Computer 19335 | -3/Research | Found Exp. Targeting Computer 19340 | -3/Research | Found Exp. Targeting Computer 19370 | -3/Research | Identified exit to Armory 19370 | -3/Research | Identified exit to Quarantine 19419 | -3/Research | Garrison activated, responded to threat 19582 | -3/Research | Identified Molecular Scythe (x2) 19692 | -3/Research | Fabricated Exp. Propulsion Shielding? 19756 | -3/Research | Local fabrication network quarantined 19786 | -3/Research | Repaired Lrg. Storage Unit 19795 | -3/Research | Repaired Lrg. Storage Unit 19807 | -3/Research | First assault squad dispatched 19948 | -3/Research | Build established: Scavenger-Scout 20091 | -3/Research | Core integrity fell below 50% 20113 | -3/Research | Entered Quarantine 20134 | -3/Quarantine | Lost 13 parts (2p2n7u2w) 20228 | -3/Quarantine | Found Alien Artifact 20228 | -3/Quarantine | Identified Matter Drive 20363 | -3/Quarantine | First assault squad dispatched 20466 | -3/Quarantine | Build established: Hauler-Mutant 20610 | -3/Quarantine | Found Alien Artifact 20644 | -3/Quarantine | Discovered new exit (range 57) 20772 | -3/Quarantine | Build established: Scavenger-Mutant 20815 | -3/Quarantine | Repaired Exp. Sensor Array 20863 | -3/Quarantine | Repaired Exp. Propulsion Shielding 20899 | -3/Quarantine | Repaired Lyr. Heavy Armor Plating 21200 | -3/Quarantine | Found Alien Impact Weapon 21206 | -3/Quarantine | Core integrity fell below 20% 21242 | -3/Quarantine | Entered Research 21242 | -2/Research | Warlord forces began assault on 0b10 21242 | -2/Research | Evolved 2 slots: Power x1, Utility x1 21260 | -2/Research | Found Quantum Capacitor 21352 | -2/Research | Research machine network offline 21358 | -2/Research | Fabricated Exp. Terrain Scanner (x1) 21419 | -2/Research | Found Exp. Core Analyzer 21443 | -2/Research | Local fabrication network quarantined 21574 | -2/Research | Borebot progress halted 21602 | -2/Research | Borebot progress halted 21608 | -2/Research | Found Exp. Signal Interpreter 21647 | -2/Research | Met up with Warlord 21666 | -2/Research | Spotted Striker 21666 | -2/Research | Spotted Striker 21666 | -2/Research | Spotted Striker 21669 | -2/Research | Spotted Striker 21674 | -2/Research | Found Prototype Device 21794 | -2/Research | Borebot progress halted 21854 | -2/Research | Discovered new exit (range 5) 21860 | -2/Research | Identified exit to Testing 21862 | -2/Research | Entered Testing 21888 | -2/Testing | Repaired Lrg. Storage Unit 21952 | -2/Testing | Found Prototype Energy Cannon 22125 | -2/Testing | Identified Null Cannon 22212 | -2/Testing | Found Exp. Targeting Computer 22220 | -2/Testing | Found Exp. Targeting Computer 22261 | -2/Testing | Identified Adv. Kinecellerator 22265 | -2/Testing | Found Prototype Energy Cannon 22344 | -2/Testing | Identified Imp. Potential Cannon 22361 | -2/Testing | Found Prototype Protection 22419 | -2/Testing | Found Prototype Hackware 22426 | -2/Testing | Identified System Mapper 22671 | -2/Testing | Found Prototype Device 22671 | -2/Testing | Identified Exp. Hardlight Generator 22696 | -2/Testing | Found Prototype Energy Cannon 22696 | -2/Testing | Identified Disintegrator 22722 | -2/Testing | Build established: Hacker-Scout 22827 | -2/Testing | Lost 3 parts (1p1u1w) 22972 | -2/Testing | Fabricated Cmb. Linear Gravjet? 23090 | -2/Testing | Fabricated Femtoactuators (x1) 23100 | -2/Testing | Discovered new exit (range 14) 23130 | -2/Testing | Found Exp. Signal Interpreter 23152 | -2/Testing | Identified SHELL Armor 23197 | -2/Testing | Identified Core Stripper 23215 | -2/Testing | Destroyed 10 combat bots 23258 | -2/Testing | Spotted Fortress 23261 | -2/Testing | Local fabrication network quarantined 23263 | -2/Testing | Destroyed Fortress 23276 | -2/Testing | Found Prototype Device 23276 | -2/Testing | Identified Exp. Force Field 23279 | -2/Testing | Found Prototype Device 23279 | -2/Testing | Identified EM Dispersion Field 23282 | -2/Testing | Found Prototype Device 23282 | -2/Testing | Identified Thermal Barrier 23286 | -2/Testing | Found Prototype Reactor 23286 | -2/Testing | Identified Vortex Chain Reactor 23321 | -2/Testing | Discovered new exit (range 6) 23322 | -2/Testing | Identified exit to Section 7 23323 | -2/Testing | Entered Section 7 23346 | -2/Section 7 | Spotted B-90 Cyclops 23352 | -2/Section 7 | Destroyed B-90 Cyclops 23446 | -2/Section 7 | Discovered new exit (range 16) 23452 | -2/Section 7 | Found Alien Artifact 23476 | -2/Section 7 | Identified Integrated Reactor 23476 | -2/Section 7 | Identified Subatomic Replicator 23476 | -2/Section 7 | Installed Integrated Reactor, increased core energy generation (+10) 23497 | -2/Section 7 | Build established: Hacker-Sprinter 23514 | -2/Section 7 | Found Prototype Launcher 23514 | -2/Section 7 | Identified Adv. Micro-nuke Launcher 23533 | -2/Section 7 | Spotted S7 Guard 23573 | -2/Section 7 | Destroyed S7 Guard 23623 | -2/Section 7 | First assault squad dispatched 23626 | -2/Section 7 | Found Alien Artifact 23630 | -2/Section 7 | Lost 3 parts (1n2w) 23733 | -2/Section 7 | System corruption reached 10% 23790 | -2/Section 7 | Central database locked down 23811 | -2/Section 7 | Identified Integrated Singularity Reactor 23811 | -2/Section 7 | Used Subatomic Replicator to replicate Integrated Singularity Reactor 23813 | -2/Section 7 | Installed Integrated Singularity Reactor, increased core energy generation (+20) 23814 | -2/Section 7 | Installed Integrated Singularity Reactor, increased core energy generation (+20) 23851 | -2/Section 7 | Spotted B-90 Cyclops 24103 | -2/Section 7 | Repaired Lrg. Storage Unit 24131 | -2/Section 7 | Repaired Exp. Propulsion Shielding 24141 | -2/Section 7 | Found Alien Artifact 24145 | -2/Section 7 | P-80 Master assimilated allied Director 9a 24196 | -2/Section 7 | Found Alien Artifact 24205 | -2/Section 7 | Found Alien Artifact 24219 | -2/Section 7 | Identified Integrity Redistributor 24219 | -2/Section 7 | Identified Core Reset Matrix (x2) 24229 | -2/Section 7 | Spotted Alpha 7 24306 | -2/Section 7 | Found Integrated Reactor 24306 | -2/Section 7 | Installed Integrated Reactor, increased core energy generation (+10) 24342 | -2/Section 7 | Found Matter Drive 24360 | -2/Section 7 | Found Alien Artifact 24484 | -2/Section 7 | Spotted B-99 Colossus 24511 | -2/Section 7 | Found Alien Artifact 24511 | -2/Section 7 | Identified LRC Insulator 24511 | -2/Section 7 | Installed LRC Insulator, gained EM resistance (25) 24514 | -2/Section 7 | Found Alien Artifact 24514 | -2/Section 7 | Identified LRC Energy Well 24514 | -2/Section 7 | Installed LRC Energy Well, increased energy storage capacity (+250) 24530 | -2/Section 7 | Found Integrated Reactor 24530 | -2/Section 7 | Installed Integrated Reactor, increased core energy generation (+10) 24531 | -2/Section 7 | Found Integrated Reactor 24531 | -2/Section 7 | Installed Integrated Reactor, increased core energy generation (+10) 24533 | -2/Section 7 | Found Integrated Reactor 24533 | -2/Section 7 | Installed Integrated Reactor, increased core energy generation (+10) 24609 | -2/Section 7 | Identified exit to Access 24609 | -2/Section 7 | Entered Access 24609 | -1/Access | Evolved 2 slots: Propulsion x1, Utility x1 24667 | -1/Access | Fabricated Cmb. Linear Gravjet? 24728 | -1/Access | Fabricated Cmb. Linear Gravjet (x2) 24767 | -1/Access | Found Exp. Targeting Computer 24768 | -1/Access | Found Faulty Exp. Targeting Computer 24770 | -1/Access | Found Exp. Targeting Computer 25045 | -1/Access | Repaired Exp. Energy Well? 25383 | -1/Access | Found Prototype Hackware 25383 | -1/Access | Identified Exp. Hacking Suite 25506 | -1/Access | Found Quantum Capacitor 25609 | -1/Access | First assault squad dispatched 25716 | -1/Access | Discovered new exit (range 8) 25717 | -1/Access | Identified exit to Command 25717 | -1/Access | Entered Command 25729 | -1/Command | Found Prototype Processor 25729 | -1/Command | Identified Exp. Target Analyzer 25776 | -1/Command | Spotted B-99 Colossus 25785 | -1/Command | Build established: Wizard-Sprinter 25867 | -1/Command | Repaired Broken Cmb. Linear Gravjet 25895 | -1/Command | Repaired Exp. Propulsion Shielding 25955 | -1/Command | Disengaged cave seal 25956 | -1/Command | Welcomed Warlord to Command 25978 | -1/Command | Spotted B-99 Colossus 25985 | -1/Command | Destroyed B-99 Colossus 26071 | -1/Command | Spotted M Guard 26071 | -1/Command | Spotted M Guard 26071 | -1/Command | Spotted Combat Programmer 26084 | -1/Command | Spotted Combat Programmer 26102 | -1/Command | Destroyed M Guard 26104 | -1/Command | Found Prototype Device 26106 | -1/Command | Found Prototype Reactor 26106 | -1/Command | Identified Zero-point Reactor 26110 | -1/Command | Destroyed M Guard 26110 | -1/Command | Destroyed all MAIN.C guards 26113 | -1/Command | Warlord commented on Warlord statues 26125 | -1/Command | Found Zero-point Reactor 26130 | -1/Command | Found Prototype Device 26130 | -1/Command | Identified AEGIS Remote Shield (x2) 26222 | -1/Command | Spotted Striker 26232 | -1/Command | Destroyed Striker 26242 | -1/Command | Spotted Executioner 26242 | -1/Command | Spotted Executioner 26242 | -1/Command | Spotted Alpha 7 26248 | -1/Command | Destroyed Executioner 26252 | -1/Command | Found Adv. Kinecellerator 26332 | -1/Command | Met MAIN.C 26336 | -1/Command | 0b10 Conduit disabled 26350 | -1/Command | Destroyed MAIN.C Shell 26351 | -1/Command | MAIN.C activated Command garrisons 26359 | -1/Command | Used Integrity Redistributor, redistributed integrity from core (-194) 26427 | -1/Command | Destroyed MAIN.C 26528 | -1/Command | Build established: Hauler-Mutant 26542 | -1/Command | Discovered new exit (range 8) 26636 | -1/Command | Destroyed 7 combat bots 26680 | *** | Establishing 0b11! Last Messages --------------- 26599_ Destroyed Biometal Leg. 26599_ H-88 Terminator destroyed. 26605_ Acquired 18 matter. 26610_ Destroyed Hvy. Laser. 26610_ Terminal disabled. 26610_ Destroyed Hvy. Laser. 26613_ Destroyed Unknown Leg. 26613_ G-73 Enforcer destroyed. 26615_ Destroyed Adv. Heat Sink. 26615_ Destroyed Phase Gun. 26615_ G-73 Enforcer destroyed. 26623_ Slug penetrates Wall. 26623_ Penetrated by Slug. 26629_ The unstable cave ceiling collapses. 26654_ K-01 Serf collects debris. 26657_ Penetrated by Slug. 26657_ Destroyed KE Penetrator. 26659_ K-01 Serf collects debris. 26660_ H-88 Terminator destroyed. 26663_ K-01 Serf collects debris. Map ----- +----------------------------------------------------+ | ????????# "" "" #?????# =!??????????????? | | ????????#! #?????# ?????????######## | | ????????# ####### ???????????""""""" | | ????????# # ##+###?????????#"" | | ????????# + #?????????#""""" | | ????????# = # = #?????????#""""" | | ????????# # #### ######????#" " | | ????????# !!! ## !#####+## #????#"" " | | ????????# !!! ##[ # # #????#"" " | | ????????# !! ## !! # #????# " | | ????????############### # # #????# " ! | | ?????????????# ##### # ===# #????# " !% | | ?????????????# # ===# #????#"""" * | | ?????????? # # == # #????#"" | | ?????????? # [ ## # #????# | | ?????????? #### !%! # #????# | | ?????????? #??# = # ###### [ | | ?????????? #??# = | | ?????????? #### [ =%* | | ?????????"" ## | | ????#? """" # [ "" ########## | | ????# """" # " ##????????# " "" | | ????# """" + % ## " ##?????????# """ | | ????# # ## ### #??????????######### | | ????# # ## ####??????????????????? | | ????# """" + %! ## @ #?????????????????????? | | ????# """" #[!*! ## #?????????????????????? | | ????# """" #=%|= #######?????????????????????? | | ????# """" "!*! #???????????????????????????? | | ????# #### #???????????????????????????? | | ????# #??# #???????????????????????????? | | ????####+#####??# +???????????????????????????? | | ???????# #??????# #???????????????????????????? | | ???????# #??????# #???????????????????????????? | | ???????# #??????# #???????????????????????????? | | ??????? ?????? #???????????????????????????? | | ??????? ?????? ##+#???????????????????????????? | | ??????? ?????? ???????????????????????????????? | | ??????? ?????? ???????????????????????????????? | | ??????? ?????? ???????????????????????????????? | | ??????? ??????? ???????????????????????????????? | | ??????#####??????????????????????????????????????? | | ?????????????????????????????????????????????????? | | ?????????????????????????????????????????????????? | | ?????????????????????????????????????????????????? | | ?????????????????????????????????????????????????? | | ?????????????????????????????????????????????????? | | ?????????????????????????????????????????????????? | | ?????????????????????????????????????????????????? | | ?????????????????????????????????????????????????? | +----------------------------------------------------+ Best States ------------- Heat Dissipation 75 Coolant Potential 180 Energy Generation 151 Energy Capacity 3240 Matter Stores 300 Matter Capacity 300 Sight Range 24 Robot Scan Range 30 Terrain Scan Range 30 Terrain Scan Density 85 Jamming Range 16 Additional Mass Support 20 Armor Coverage 1600 Resistance: KI 30 Resistance: TH 50 Resistance: EM 100 Propulsion Shielding 90 Utility Shielding 90 Weapon Shielding 100 Weapon Cycling 25 Melee Speed Boost 50 Phase Shifting 20 Evasion (%) 79 Targeting Accuracy 36 Melee Accuracy 8 Launcher Accuracy 40 Core Analysis 15 Armor Integrity Analysis 66 Recoil Reduction 4 Energy Filtering 50 Kinecelleration 50 Force Boost 4 Salvage Targeting 4 Offensive Hacking 60 Defensive Hacking 30 Item Schematics ----------------- Combat Drone Bay | -7/Data Miner | Free Lgt. Regenerative Plating | -7/Data Miner | Free Cmb. Gravmag System | -7/Data Miner | Free Exp. Sensor Array | -7/Data Miner | Free Exp. Terrain Scanner | -7/Data Miner | Free Exp. Terrain Scan Processor | -7/Data Miner | Free Cloaking Device | -7/Data Miner | Free Mni. Smartbomb Launcher | -7/Data Miner | Free Plasma Sword | -7/Data Miner | Free Kinetic Spear | -7/Data Miner | Free Exp. Utility Shielding | -5/Factory | Hacked Exp. Propulsion Shielding | -5/Factory | Hacked Exp. Weapon Shielding | -5/Factory | Hacked Femtoactuators | -2/Testing | Hacked Cmb. Linear Gravjet | -2/Testing | Hacked Robot Schematics ------------------ S-27 Virus | -7/Data Miner | Free G-50 Soldier | -7/Data Miner | Free G-67 Veteran | -7/Data Miner | Free X-72 Disruptor | -7/Data Miner | Free H-66 Slayer | -7/Data Miner | Free I-36 Angel | -7/Data Miner | Free Fabricated ------------ Exp. Sensor Array | x1 | -6/Factory Cmb. Gravmag System | x2 | -6/Factory Exp. Terrain Scanner | x1 | -6/Factory Exp. Terrain Scan Processor | x1 | -6/Factory Mni. Smartbomb Launcher | x1 | -6/Factory Lance | x2 | -6/Factory | Preloaded Cmb. Gravmag System | x2 | -5/Factory Mni. Smartbomb Launcher | x1 | -5/Factory Exp. Utility Shielding | x1 | -5/Factory Exp. Utility Shielding | x1 | -5/Factory Exp. Propulsion Shielding | x1 | -5/Factory Kinetic Spear | x1 | -5/Factory Exp. Propulsion Shielding | x1 | -3/Research Exp. Terrain Scanner | x1 | -2/Research Cmb. Linear Gravjet | x2 | -2/Testing Femtoactuators | x1 | -2/Testing Cmb. Linear Gravjet | x2 | -1/Access Cmb. Linear Gravjet | x2 | -1/Access Alien Tech Used ----------------- Matter Drive Core Stripper Integrated Reactor Subatomic Replicator Integrated Singularity Reactor LRC Insulator LRC Energy Well Integrity Redistributor Achievements -------------- None Challenges ------------ None Game ------ Seed FieldUtilityWand Manual? 0 Play Time 06:06:28 Cumulative 945.4 hours Start 2020.09.14 @ 19:36:34 End 2020.09.15 @ 15:59:26 Sessions 3 Manual Loads 0 Difficulty Rogue Special Mode None Game No. 289 Rogue 289 Adventurer 0 Explorer 0 Win Type 1 Total 61 Types 42/2/6/5/4/1/1/0/0 Lore% 95 Gallery% 98 Achievement% 98 Wizard Run 0 Options --------- ASCII 0 Keyboard 1 Movement Numpad Keybinds 0 Fullscreen 1 Font 18/SmallcapsGlow Map View 76x50 Tactical HUD 1 Map Filters NONE Filters NONE Steam 1 RUN: 85a7f85f-af12-4666-a3fc-5f1408ea3f96